Workbook

Sheet Rammebetingelser
B1: RB_1 | C1: RB_2 | D1: RB_3 | E1: RB_4 | F1: RB_5 | G1: RB_6 | H1: RB_7 | I1: RB_8 | J1: RB_9 | K1: RB_10 | L1: RB_11 | M1: RB_12 | N1: RB_13 | O1: RB_14 | P1: RB_15
B2: Kapacitet (m3/t) | C2: Geografisk placering | D2: Lokalitet (land/by) | E2: Årlig produktion | F2: Løftehøjde | G2: Geo-/hydrologiske vanskeligheder | H2: Råvands-kvalitet
A3: 1 | B3: 0 - 25 | C3: 95 | D3: Land | E3: 0 - 100.000 | F3: 0 - 30 | G3: ingen | H3: simpel
A4: 2 | B4: 25 - 50 | C4: 100 | D4: By | E4: 100.000 - 250.000 | F4: 30 - 60 | G4: moderat | H4: moderat
A5: 3 | B5: 50 - 100 | C5: 110 | D5: City | E5: 250.000 - 500.000 | F5: > 60 | G5: vanskelig | H5: vanskelig
A6: 4 | B6: > 100 | C6: 115 | D6: Indre city | E6: 500.000 - 1 mio | G6: meget vanskelig | H6: meget vanskelig
A7: 5 | E7: > 1 mio
A8: 6
A9: 7
A10: 8
A11: 9
A12: 10
B13: =COUNTA(B3:B12) -> 4 | C13: =COUNTA(C3:C12) -> 4 | D13: 4 | E13: 5 | F13: 3 | G13: 4 | H13: 4 | I13: 0 | J13: 0 | K13: 0 | L13: 0 | M13: 0 | N13: 0 | O13: 0 | P13: 0
B15: Tabellen er ændret! Tryk på knappen og opdatér TL-arket
C19: FALSE

Sheet Teknologiliste
M1: XXX | N1: 0 | O1: 0 | P1: 1 | Q1: 1 | R1: 0 | S1: 0 | T1: 1 | U1: 1 | V1: 0 | W1: 0 | X1: 1 | Y1: 1 | Z1: 0 | AA1: 0 | AB1: 1 | AC1: 1 | AD1: 0 | AE1: 0 | AF1: 1 | AG1: 1 | AH1: 0 | AI1: 0 | AJ1: 1 | AK1: 1 | AL1: 0 | AM1: 0 | AN1: 1 | AO1: 1 | AP1: 0 | AQ1: 0 | AR1: XXX | AS1: Ikke ret i orange celler - de skal egentlig holdes skjult
B2: Teknologier | I2: Basis-priser | N2: RB_1 | P2: RB_2 | R2: RB_3 | T2: RB_4 | V2: RB_5 | X2: RB_6 | Z2: RB_7 | AB2: RB_8 | AD2: RB_9 | AF2: RB_10 | AH2: RB_11 | AJ2: RB_12 | AL2: RB_13 | AN2: RB_14 | AP2: RB_15
N3: Kapacitet (m3/t) | P3: Geografisk placering | R3: Lokalitet (land/by) | T3: Årlig produktion | V3: Løftehøjde | X3: Geo-/hydrologiske vanskeligheder | Z3: Råvands-kvalitet
A4: Farve | B4: Hovedfunktion | C4: Sort | D4: Teknologigruppe | E4: Teknologi | F4: Levetid (år) | G4: Kilde_lev | H4: Tek-niveau | I4: Anlæg (kr) | J4: Kilde_anl | K4: Drift (kr/år) | L4: Vlh (kr/år) | M4: Enhed | N4: min | O4: max | P4: min | Q4: max | R4: min | S4: max | T4: min | U4: max | V4: min | W4: max | X4: min | Y4: max | Z4: min | AA4: max | AB4: min | AC4: max | AD4: min | AE4: max | AF4: min | AG4: max | AH4: min | AI4: max | AJ4: min | AK4: max | AL4: min | AM4: max | AN4: min | AO4: max | AP4: min | AQ4: max
A5: 0 | B5: Kildeplads | D5: Forundersøgelse | E5: TEM Geoundersøgelse | F5: 1 | G5: Erfaringstal | H5: STD | I5: 32500 | J5: Prishåndbogen | K5: 0 | L5: 0 | M5: dag | R5: Land | S5: Land | AS5: 0 | AT5: 0 | AU5: 0 | AV5: 0 | AW5: 0 | AX5: 0 | AY5: 0 | AZ5: 0 | BA5: 0 | BB5: 0 | BC5: 0 | BD5: 0 | BE5: 0 | BF5: 0 | BG5: 0 | BH5: 0 | BI5: 0 | BJ5: 0 | BK5: 0 | BL5: 0 | BM5: 0 | BN5: 0 | BO5: 0 | BP5: 0 | BQ5: 0 | BR5: 0 | BS5: 0 | BT5: 0 | BU5: 0 | BV5: 0
A6: 0 | B6: Kildeplads | D6: Forundersøgelse | E6: MEP Geoundersøgelse | F6: 1 | G6: Erfaringstal | H6: STD | I6: 21500 | J6: Prishåndbogen | K6: 0 | L6: 0 | M6: km | R6: Land | S6: Land | AS6: 0 | AT6: 0 | AU6: 0 | AV6: 0 | AW6: 0 | AX6: 0 | AY6: 0 | AZ6: 0 | BA6: 0 | BB6: 0 | BC6: 0 | BD6: 0 | BE6: 0 | BF6: 0 | BG6: 0 | BH6: 0 | BI6: 0 | BJ6: 0 | BK6: 0 | BL6: 0 | BM6: 0 | BN6: 0 | BO6: 0 | BP6: 0 | BQ6: 0 | BR6: 0 | BS6: 0 | BT6: 0 | BU6: 0 | BV6: 0
A7: 0 | B7: Kildeplads | D7: Forundersøgelse | E7: MRS Sondering | F7: 1 | G7: Erfaringstal | H7: STOA | I7: 20000 | J7: Erfaringstal | K7: 0 | L7: 0 | M7: stk | R7: Land | S7: Land | AS7: 0 | AT7: 0 | AU7: 0 | AV7: 0 | AW7: 0 | AX7: 0 | AY7: 0 | AZ7: 0 | BA7: 0 | BB7: 0 | BC7: 0 | BD7: 0 | BE7: 0 | BF7: 0 | BG7: 0 | BH7: 0 | BI7: 0 | BJ7: 0 | BK7: 0 | BL7: 0 | BM7: 0 | BN7: 0 | BO7: 0 | BP7: 0 | BQ7: 0 | BR7: 0 | BS7: 0 | BT7: 0 | BU7: 0 | BV7: 0
A8: 0 | B8: Kildeplads | D8: Forundersøgelse | E8: Model IOL + påvirkning magasin | F8: 1 | G8: Erfaringstal | H8: BAT | I8: 20000 | J8: Erfaringstal | K8: 0 | L8: 0 | M8: stk | AS8: 0 | AT8: 0 | AU8: 0 | AV8: 0 | AW8: 0 | AX8: 0 | AY8: 0 | AZ8: 0 | BA8: 0 | BB8: 0 | BC8: 0 | BD8: 0 | BE8: 0 | BF8: 0 | BG8: 0 | BH8: 0 | BI8: 0 | BJ8: 0 | BK8: 0 | BL8: 0 | BM8: 0 | BN8: 0 | BO8: 0 | BP8: 0 | BQ8: 0 | BR8: 0 | BS8: 0 | BT8: 0 | BU8: 0 | BV8: 0
A9: 0 | B9: Kildeplads | D9: Forundersøgelse | E9: Model IOL + alle påvirkning | F9: 1 | G9: Erfaringstal | H9: STOA | I9: 35000 | J9: Erfaringstal | K9: 0 | L9: 0 | M9: stk | AS9: 0 | AT9: 0 | AU9: 0 | AV9: 0 | AW9: 0 | AX9: 0 | AY9: 0 | AZ9: 0 | BA9: 0 | BB9: 0 | BC9: 0 | BD9: 0 | BE9: 0 | BF9: 0 | BG9: 0 | BH9: 0 | BI9: 0 | BJ9: 0 | BK9: 0 | BL9: 0 | BM9: 0 | BN9: 0 | BO9: 0 | BP9: 0 | BQ9: 0 | BR9: 0 | BS9: 0 | BT9: 0 | BU9: 0 | BV9: 0
A10: 1 | B10: Kildeplads | D10: Boreplads | E10: Mobilisering, indretning, retablering | F10: 50 | G10: Polka | H10: STD | I10: 18642 | J10: Prishåndbogen | K10: 0 | L10: 0 | M10: stk | AS10: 0 | AT10: 0 | AU10: 0 | AV10: 0 | AW10: 0 | AX10: 0 | AY10: 0 | AZ10: 0 | BA10: 0 | BB10: 0 | BC10: 0 | BD10: 0 | BE10: 0 | BF10: 0 | BG10: 0 | BH10: 0 | BI10: 0 | BJ10: 0 | BK10: 0 | BL10: 0 | BM10: 0 | BN10: 0 | BO10: 0 | BP10: 0 | BQ10: 0 | BR10: 0 | BS10: 0 | BT10: 0 | BU10: 0 | BV10: 0
A11: 1 | B11: Kildeplads | D11: Boreplads | E11: Køreplader til boreplads | F11: 50 | G11: Erfaringstal | H11: STD | I11: 207 | J11: Prishåndbogen | K11: 0 | L11: 0 | M11: døgn | AS11: 0 | AT11: 0 | AU11: 0 | AV11: 0 | AW11: 0 | AX11: 0 | AY11: 0 | AZ11: 0 | BA11: 0 | BB11: 0 | BC11: 0 | BD11: 0 | BE11: 0 | BF11: 0 | BG11: 0 | BH11: 0 | BI11: 0 | BJ11: 0 | BK11: 0 | BL11: 0 | BM11: 0 | BN11: 0 | BO11: 0 | BP11: 0 | BQ11: 0 | BR11: 0 | BS11: 0 | BT11: 0 | BU11: 0 | BV11: 0
A12: 1 | B12: Kildeplads | D12: Boreplads | E12: Generator 7,5 kW | F12: 50 | G12: Erfaringstal | H12: STD | I12: 817 | J12: Prishåndbogen | K12: 0 | L12: 0 | M12: døgn | AS12: 0 | AT12: 0 | AU12: 0 | AV12: 0 | AW12: 0 | AX12: 0 | AY12: 0 | AZ12: 0 | BA12: 0 | BB12: 0 | BC12: 0 | BD12: 0 | BE12: 0 | BF12: 0 | BG12: 0 | BH12: 0 | BI12: 0 | BJ12: 0 | BK12: 0 | BL12: 0 | BM12: 0 | BN12: 0 | BO12: 0 | BP12: 0 | BQ12: 0 | BR12: 0 | BS12: 0 | BT12: 0 | BU12: 0 | BV12: 0
A13: 1 | B13: Kildeplads | D13: Boreplads | E13: 50 m slange m. spreder | F13: 50 | G13: Erfaringstal | H13: STD | I13: 79 | J13: Prishåndbogen | K13: 0 | L13: 0 | M13: døgn | AS13: 0 | AT13: 0 | AU13: 0 | AV13: 0 | AW13: 0 | AX13: 0 | AY13: 0 | AZ13: 0 | BA13: 0 | BB13: 0 | BC13: 0 | BD13: 0 | BE13: 0 | BF13: 0 | BG13: 0 | BH13: 0 | BI13: 0 | BJ13: 0 | BK13: 0 | BL13: 0 | BM13: 0 | BN13: 0 | BO13: 0 | BP13: 0 | BQ13: 0 | BR13: 0 | BS13: 0 | BT13: 0 | BU13: 0 | BV13: 0
A14: 1 | B14: Kildeplads | D14: Boreplads | E14: 50 m slange m. sandfang og beluftning | F14: 50 | G14: Erfaringstal | H14: STD | I14: 183 | J14: Prishåndbogen | K14: 0 | L14: 0 | M14: døgn | AS14: 0 | AT14: 0 | AU14: 0 | AV14: 0 | AW14: 0 | AX14: 0 | AY14: 0 | AZ14: 0 | BA14: 0 | BB14: 0 | BC14: 0 | BD14: 0 | BE14: 0 | BF14: 0 | BG14: 0 | BH14: 0 | BI14: 0 | BJ14: 0 | BK14: 0 | BL14: 0 | BM14: 0 | BN14: 0 | BO14: 0 | BP14: 0 | BQ14: 0 | BR14: 0 | BS14: 0 | BT14: 0 | BU14: 0 | BV14: 0
A15: 0 | B15: Kildeplads | D15: Boringsudførelse | E15: Tørboring_Ø250mm_0-30m | F15: 50 | G15: Erfaringstal | H15: STD | I15: 1257 | J15: Prishåndbogen | K15: 0 | L15: 0 | M15: lbm | N15: 0 - 25 | O15: 0 - 25 | AS15: 0 | AT15: 0 | AU15: 0 | AV15: 0 | AW15: 0 | AX15: 0 | AY15: 0 | AZ15: 0 | BA15: 0 | BB15: 0 | BC15: 0 | BD15: 0 | BE15: 0 | BF15: 0 | BG15: 0 | BH15: 0 | BI15: 0 | BJ15: 0 | BK15: 0 | BL15: 0 | BM15: 0 | BN15: 0 | BO15: 0 | BP15: 0 | BQ15: 0 | BR15: 0 | BS15: 0 | BT15: 0 | BU15: 0 | BV15: 0
A16: 0 | B16: Kildeplads | D16: Boringsudførelse | E16: Tørboring_Ø250mm_30-90m | F16: 50 | G16: Erfaringstal | H16: STD | I16: 1676 | J16: Prishåndbogen | K16: 0 | L16: 0 | M16: lbm | N16: 0 - 25 | O16: 0 - 25 | AS16: 0 | AT16: 0 | AU16: 0 | AV16: 0 | AW16: 0 | AX16: 0 | AY16: 0 | AZ16: 0 | BA16: 0 | BB16: 0 | BC16: 0 | BD16: 0 | BE16: 0 | BF16: 0 | BG16: 0 | BH16: 0 | BI16: 0 | BJ16: 0 | BK16: 0 | BL16: 0 | BM16: 0 | BN16: 0 | BO16: 0 | BP16: 0 | BQ16: 0 | BR16: 0 | BS16: 0 | BT16: 0 | BU16: 0 | BV16: 0
A17: 0 | B17: Kildeplads | D17: Boringsudførelse | E17: Tørboring_Ø300mm_0-30m | F17: 50 | G17: Erfaringstal | H17: STD | I17: 1466 | J17: Prishåndbogen | K17: 0 | L17: 0 | M17: lbm | N17: 0 - 25 | O17: 25 - 50 | AS17: 0 | AT17: 0 | AU17: 0 | AV17: 0 | AW17: 0 | AX17: 0 | AY17: 0 | AZ17: 0 | BA17: 0 | BB17: 0 | BC17: 0 | BD17: 0 | BE17: 0 | BF17: 0 | BG17: 0 | BH17: 0 | BI17: 0 | BJ17: 0 | BK17: 0 | BL17: 0 | BM17: 0 | BN17: 0 | BO17: 0 | BP17: 0 | BQ17: 0 | BR17: 0 | BS17: 0 | BT17: 0 | BU17: 0 | BV17: 0
A18: 0 | B18: Kildeplads | D18: Boringsudførelse | E18: Tørboring_Ø300mm_30-90m | F18: 50 | G18: Erfaringstal | H18: STD | I18: 2095 | J18: Prishåndbogen | K18: 0 | L18: 0 | M18: lbm | N18: 0 - 25 | O18: 25 - 50 | AS18: 0 | AT18: 0 | AU18: 0 | AV18: 0 | AW18: 0 | AX18: 0 | AY18: 0 | AZ18: 0 | BA18: 0 | BB18: 0 | BC18: 0 | BD18: 0 | BE18: 0 | BF18: 0 | BG18: 0 | BH18: 0 | BI18: 0 | BJ18: 0 | BK18: 0 | BL18: 0 | BM18: 0 | BN18: 0 | BO18: 0 | BP18: 0 | BQ18: 0 | BR18: 0 | BS18: 0 | BT18: 0 | BU18: 0 | BV18: 0
A19: 0 | B19: Kildeplads | D19: Boringsudførelse | E19: Lufthæve_Ø450mm_0-50m | F19: 50 | G19: Erfaringstal | H19: STD | I19: 850 | J19: Prishåndbogen | K19: 0 | L19: 0 | M19: lbm | AS19: 0 | AT19: 0 | AU19: 0 | AV19: 0 | AW19: 0 | AX19: 0 | AY19: 0 | AZ19: 0 | BA19: 0 | BB19: 0 | BC19: 0 | BD19: 0 | BE19: 0 | BF19: 0 | BG19: 0 | BH19: 0 | BI19: 0 | BJ19: 0 | BK19: 0 | BL19: 0 | BM19: 0 | BN19: 0 | BO19: 0 | BP19: 0 | BQ19: 0 | BR19: 0 | BS19: 0 | BT19: 0 | BU19: 0 | BV19: 0
A20: 0 | B20: Kildeplads | D20: Boringsudførelse | E20: Lufthæve_Ø450mm_50-250m | F20: 50 | G20: Erfaringstal | H20: STD | I20: 650 | J20: Prishåndbogen | K20: 0 | L20: 0 | M20: lbm | AS20: 0 | AT20: 0 | AU20: 0 | AV20: 0 | AW20: 0 | AX20: 0 | AY20: 0 | AZ20: 0 | BA20: 0 | BB20: 0 | BC20: 0 | BD20: 0 | BE20: 0 | BF20: 0 | BG20: 0 | BH20: 0 | BI20: 0 | BJ20: 0 | BK20: 0 | BL20: 0 | BM20: 0 | BN20: 0 | BO20: 0 | BP20: 0 | BQ20: 0 | BR20: 0 | BS20: 0 | BT20: 0 | BU20: 0 | BV20: 0
A21: 0 | B21: Kildeplads | D21: Boringsudførelse | E21: Borehulslogging før filtersætning | F21: 50 | G21: Erfaringstal | H21: STD | I21: 15710 | J21: Prishåndbogen | K21: 0 | L21: 0 | M21: stk | AS21: 0 | AT21: 0 | AU21: 0 | AV21: 0 | AW21: 0 | AX21: 0 | AY21: 0 | AZ21: 0 | BA21: 0 | BB21: 0 | BC21: 0 | BD21: 0 | BE21: 0 | BF21: 0 | BG21: 0 | BH21: 0 | BI21: 0 | BJ21: 0 | BK21: 0 | BL21: 0 | BM21: 0 | BN21: 0 | BO21: 0 | BP21: 0 | BQ21: 0 | BR21: 0 | BS21: 0 | BT21: 0 | BU21: 0 | BV21: 0
A22: 1 | B22: Kildeplads | D22: Filter m/gruskastning | E22: PVC_Ø160mm | F22: 50 | G22: Erfaringstal | H22: STD | I22: 995 | J22: Prishåndbogen | K22: 0 | L22: 0 | M22: lbm | N22: 0 - 25 | O22: 0 - 25 | AS22: 0 | AT22: 0 | AU22: 0 | AV22: 0 | AW22: 0 | AX22: 0 | AY22: 0 | AZ22: 0 | BA22: 0 | BB22: 0 | BC22: 0 | BD22: 0 | BE22: 0 | BF22: 0 | BG22: 0 | BH22: 0 | BI22: 0 | BJ22: 0 | BK22: 0 | BL22: 0 | BM22: 0 | BN22: 0 | BO22: 0 | BP22: 0 | BQ22: 0 | BR22: 0 | BS22: 0 | BT22: 0 | BU22: 0 | BV22: 0
A23: 1 | B23: Kildeplads | D23: Filter m/gruskastning | E23: PVC_Ø200mm | F23: 50 | G23: Erfaringstal | H23: STD | I23: 1309 | J23: Prishåndbogen | K23: 0 | L23: 0 | M23: lbm | N23: 0 - 25 | O23: 25 - 50 | AS23: 0 | AT23: 0 | AU23: 0 | AV23: 0 | AW23: 0 | AX23: 0 | AY23: 0 | AZ23: 0 | BA23: 0 | BB23: 0 | BC23: 0 | BD23: 0 | BE23: 0 | BF23: 0 | BG23: 0 | BH23: 0 | BI23: 0 | BJ23: 0 | BK23: 0 | BL23: 0 | BM23: 0 | BN23: 0 | BO23: 0 | BP23: 0 | BQ23: 0 | BR23: 0 | BS23: 0 | BT23: 0 | BU23: 0 | BV23: 0
A24: 1 | B24: Kildeplads | D24: Filter m/gruskastning | E24: PVC_Ø250mm | F24: 50 | G24: Erfaringstal | H24: STD | I24: 1530 | J24: Prishåndbogen | K24: 0 | L24: 0 | M24: lbm | AS24: 0 | AT24: 0 | AU24: 0 | AV24: 0 | AW24: 0 | AX24: 0 | AY24: 0 | AZ24: 0 | BA24: 0 | BB24: 0 | BC24: 0 | BD24: 0 | BE24: 0 | BF24: 0 | BG24: 0 | BH24: 0 | BI24: 0 | BJ24: 0 | BK24: 0 | BL24: 0 | BM24: 0 | BN24: 0 | BO24: 0 | BP24: 0 | BQ24: 0 | BR24: 0 | BS24: 0 | BT24: 0 | BU24: 0 | BV24: 0
A25: 1 | B25: Kildeplads | D25: Filter m/gruskastning | E25: Viklet PVC_225mm | F25: 50 | G25: Erfaringstal | H25: BAT | I25: 3000 | J25: Erfaringstal | K25: 0 | L25: 0 | M25: lbm | N25: 0 - 25 | O25: 25 - 50 | AS25: 0 | AT25: 0 | AU25: 0 | AV25: 0 | AW25: 0 | AX25: 0 | AY25: 0 | AZ25: 0 | BA25: 0 | BB25: 0 | BC25: 0 | BD25: 0 | BE25: 0 | BF25: 0 | BG25: 0 | BH25: 0 | BI25: 0 | BJ25: 0 | BK25: 0 | BL25: 0 | BM25: 0 | BN25: 0 | BO25: 0 | BP25: 0 | BQ25: 0 | BR25: 0 | BS25: 0 | BT25: 0 | BU25: 0 | BV25: 0
A26: 1 | B26: Kildeplads | D26: Filter m/gruskastning | E26: Rustfri stål (Johnson)_225mm | F26: 75 | G26: Erfaringstal | H26: STOA | I26: 4300 | J26: Erfaringstal | K26: 0 | L26: 0 | M26: lbm | AS26: 0 | AT26: 0 | AU26: 0 | AV26: 0 | AW26: 0 | AX26: 0 | AY26: 0 | AZ26: 0 | BA26: 0 | BB26: 0 | BC26: 0 | BD26: 0 | BE26: 0 | BF26: 0 | BG26: 0 | BH26: 0 | BI26: 0 | BJ26: 0 | BK26: 0 | BL26: 0 | BM26: 0 | BN26: 0 | BO26: 0 | BP26: 0 | BQ26: 0 | BR26: 0 | BS26: 0 | BT26: 0 | BU26: 0 | BV26: 0
A27: 0 | B27: Kildeplads | D27: Forerør m/udbygning | E27: PVC_Ø160mm + bentonitpellets | F27: 50 | G27: Erfaringstal | H27: STD | I27: 550 | J27: Prishåndbogen | K27: 0 | L27: 0 | M27: lbm | N27: 0 - 25 | O27: 0 - 25 | AS27: 0 | AT27: 0 | AU27: 0 | AV27: 0 | AW27: 0 | AX27: 0 | AY27: 0 | AZ27: 0 | BA27: 0 | BB27: 0 | BC27: 0 | BD27: 0 | BE27: 0 | BF27: 0 | BG27: 0 | BH27: 0 | BI27: 0 | BJ27: 0 | BK27: 0 | BL27: 0 | BM27: 0 | BN27: 0 | BO27: 0 | BP27: 0 | BQ27: 0 | BR27: 0 | BS27: 0 | BT27: 0 | BU27: 0 | BV27: 0
A28: 0 | B28: Kildeplads | D28: Forerør m/udbygning | E28: PVC_Ø200mm + bentonitpellets | F28: 50 | G28: Erfaringstal | H28: STD | I28: 812 | J28: Prishåndbogen | K28: 0 | L28: 0 | M28: lbm | N28: 0 - 25 | O28: 25 - 50 | AS28: 0 | AT28: 0 | AU28: 0 | AV28: 0 | AW28: 0 | AX28: 0 | AY28: 0 | AZ28: 0 | BA28: 0 | BB28: 0 | BC28: 0 | BD28: 0 | BE28: 0 | BF28: 0 | BG28: 0 | BH28: 0 | BI28: 0 | BJ28: 0 | BK28: 0 | BL28: 0 | BM28: 0 | BN28: 0 | BO28: 0 | BP28: 0 | BQ28: 0 | BR28: 0 | BS28: 0 | BT28: 0 | BU28: 0 | BV28: 0
A29: 0 | B29: Kildeplads | D29: Forerør m/udbygning | E29: PVC_Ø250mm + bentonitpellets | F29: 50 | G29: Erfaringstal | H29: STD | I29: 1152 | J29: Prishåndbogen | K29: 0 | L29: 0 | M29: lbm | AS29: 0 | AT29: 0 | AU29: 0 | AV29: 0 | AW29: 0 | AX29: 0 | AY29: 0 | AZ29: 0 | BA29: 0 | BB29: 0 | BC29: 0 | BD29: 0 | BE29: 0 | BF29: 0 | BG29: 0 | BH29: 0 | BI29: 0 | BJ29: 0 | BK29: 0 | BL29: 0 | BM29: 0 | BN29: 0 | BO29: 0 | BP29: 0 | BQ29: 0 | BR29: 0 | BS29: 0 | BT29: 0 | BU29: 0 | BV29: 0
A30: 0 | B30: Kildeplads | D30: Forerør m/udbygning | E30: PVC_Ø160mm + støbebentonit | F30: 50 | G30: Erfaringstal | H30: BAT | I30: 1100 | J30: Prishåndbogen | K30: 0 | L30: 0 | M30: lbm | N30: 0 - 25 | O30: 0 - 25 | AS30: 0 | AT30: 0 | AU30: 0 | AV30: 0 | AW30: 0 | AX30: 0 | AY30: 0 | AZ30: 0 | BA30: 0 | BB30: 0 | BC30: 0 | BD30: 0 | BE30: 0 | BF30: 0 | BG30: 0 | BH30: 0 | BI30: 0 | BJ30: 0 | BK30: 0 | BL30: 0 | BM30: 0 | BN30: 0 | BO30: 0 | BP30: 0 | BQ30: 0 | BR30: 0 | BS30: 0 | BT30: 0 | BU30: 0 | BV30: 0
A31: 0 | B31: Kildeplads | D31: Forerør m/udbygning | E31: PVC_Ø200mm + støbebentonit | F31: 50 | G31: Erfaringstal | H31: BAT | I31: 1362 | J31: Prishåndbogen | K31: 0 | L31: 0 | M31: lbm | N31: 0 - 25 | O31: 25 - 50 | AS31: 0 | AT31: 0 | AU31: 0 | AV31: 0 | AW31: 0 | AX31: 0 | AY31: 0 | AZ31: 0 | BA31: 0 | BB31: 0 | BC31: 0 | BD31: 0 | BE31: 0 | BF31: 0 | BG31: 0 | BH31: 0 | BI31: 0 | BJ31: 0 | BK31: 0 | BL31: 0 | BM31: 0 | BN31: 0 | BO31: 0 | BP31: 0 | BQ31: 0 | BR31: 0 | BS31: 0 | BT31: 0 | BU31: 0 | BV31: 0
A32: 0 | B32: Kildeplads | D32: Forerør m/udbygning | E32: PVC_Ø250mm + støbebentonit | F32: 50 | G32: Erfaringstal | H32: BAT | I32: 1702 | J32: Prishåndbogen | K32: 0 | L32: 0 | M32: lbm
A33: 1 | B33: Kildeplads | D33: Tilbagestøbt forerør over åbent indtag | E33: PVC_Ø200mm | F33: 50 | G33: Erfaringstal | H33: BAT | I33: 2500 | J33: Erfaringstal | K33: 0 | L33: 0 | M33: lbm | N33: 0 - 25 | O33: 25 - 50
A34: 1 | B34: Kildeplads | D34: Tilbagestøbt forerør over åbent indtag | E34: PVC_Ø250mm | F34: 50 | G34: Erfaringstal | H34: BAT | I34: 3000 | J34: Erfaringstal | K34: 0 | L34: 0 | M34: lbm
A35: 0 | B35: Kildeplads | D35: Boringsudvikling | E35: Renpumpning | F35: 50 | G35: Erfaringstal | H35: STD | I35: 9949 | J35: Prishåndbogen | K35: 0 | L35: 1900 | M35: stk
A36: 0 | B36: Kildeplads | D36: Boringsudvikling | E36: Trinvis prøvepumpning | F36: 50 | G36: Erfaringstal | H36: STD | I36: 10000 | J36: Erfaringstal | K36: 0 | L36: 400 | M36: stk
A37: 0 | B37: Kildeplads | D37: Boringsudvikling | E37: Langtidsprøvepumpning 2 uger | F37: 50 | G37: Erfaringstal | H37: STD | I37: 20000 | J37: Erfaringstal | K37: 0 | L37: 0 | M37: stk
A38: 1 | B38: Kildeplads | D38: Boringsudvikling/renovering | E38: Tryksyring af kalkboring | F38: 50 | G38: Erfaringstal | H38: STD | I38: 55000 | J38: Erfaringstal | K38: 0 | L38: 1100 | M38: stk
A39: 1 | B39: Kildeplads | D39: Boringsudvikling/renovering | E39: Borehulslogging færdig boring, inkl. flow | F39: 50 | G39: Erfaringstal | H39: STD | I39: 20000 | J39: Erfaringstal | K39: 0 | L39: 400 | M39: stk
A40: 0 | B40: Kildeplads | D40: Pumper | E40: Pumpe 15 m3/t | F40: 15 | G40: Polka | H40: STD | I40: 35291 | J40: Prishåndbogen | K40: 53228 | L40: 1667 | M40: stk | N40: 0 - 25 | O40: 0 - 25 | T40: 0 - 100.000 | U40: 0 - 100.000
A41: 0 | B41: Kildeplads | D41: Pumper | E41: Pumpe 25 m3/t | F41: 15 | G41: Polka | H41: STD | I41: 46634 | J41: Prishåndbogen | K41: 51206 | L41: 833 | M41: stk | N41: 0 - 25 | O41: 0 - 25 | T41: 0 - 100.000 | U41: 100.000 - 250.000
A42: 0 | B42: Kildeplads | D42: Pumper | E42: Pumpe 45 m3/t | F42: 15 | G42: Polka | H42: STD | I42: 62550 | J42: Prishåndbogen | K42: 50518 | L42: 550 | M42: stk | N42: 0 - 25 | O42: 25 - 50 | T42: 0 - 100.000 | U42: 250.000 - 500.000
A43: 0 | B43: Kildeplads | D43: Pumper | E43: Pumpe 60 m3/t | F43: 15 | G43: Polka | H43: STD | I43: 85000 | J43: Prishåndbogen | K43: 50302 | L43: 417 | M43: stk | N43: 0 - 25 | O43: 50 - 100 | T43: 0 - 100.000 | U43: 250.000 - 500.000
A44: 1 | B44: Kildeplads | D44: Stigrør | E44: PE_Ø63mm | F44: 15 | G44: Polka | H44: STD | I44: 640 | J44: Prishåndbogen | K44: 0 | L44: 7 | M44: lbm | N44: 0 - 25 | O44: 0 - 25
A45: 1 | B45: Kildeplads | D45: Stigrør | E45: PE_Ø90mm | F45: 15 | G45: Polka | H45: STD | I45: 940 | J45: Prishåndbogen | K45: 0 | L45: 7 | M45: lbm | N45: 0 - 25 | O45: 25 - 50
A46: 1 | B46: Kildeplads | D46: Stigrør | E46: Rustfrit stål_Ø100mm | F46: 15 | G46: Polka | H46: BAT | I46: 2307 | J46: Prishåndbogen | K46: 0 | L46: 7 | M46: lbm | N46: 0 - 25 | O46: 50 - 100
A47: 0 | B47: Kildeplads | D47: VLT-styring af dykpumpe | E47: for 3,0 kW motor | F47: 10 | G47: Polka | H47: BAT | I47: 29700 | J47: Prishåndbogen | K47: 1400 | L47: 0 | M47: stk | N47: 0 - 25 | O47: 25 - 50 | V47: 0 - 30 | W47: 30 - 60
A48: 0 | B48: Kildeplads | D48: VLT-styring af dykpumpe | E48: for 5,5 kW motor | F48: 10 | G48: Polka | H48: BAT | I48: 31680 | J48: Prishåndbogen | K48: 1400 | L48: 0 | M48: stk | N48: 0 - 25 | O48: 25 - 50
A49: 0 | B49: Kildeplads | D49: VLT-styring af dykpumpe | E49: for 7,5 kW motor | F49: 10 | G49: Polka | H49: BAT | I49: 35180 | J49: Prishåndbogen | K49: 1400 | L49: 0 | M49: stk
A50: 0 | B50: Kildeplads | D50: VLT-styring af dykpumpe | E50: for 11,0 kW motor | F50: 10 | G50: Polka | H50: BAT | I50: 41870 | J50: Prishåndbogen | K50: 1400 | L50: 0 | M50: stk
A51: 1 | B51: Kildeplads | D51: Målere og transmittere | E51: DN65 flowmåler | F51: 10 | G51: Polka | H51: STD | I51: 20210 | J51: Prishåndbogen | K51: 2100 | L51: 0 | M51: stk | N51: 0 - 25 | O51: 0 - 25
A52: 1 | B52: Kildeplads | D52: Målere og transmittere | E52: DN100 flowmåler | F52: 10 | G52: Polka | H52: STD | I52: 20660 | J52: Prishåndbogen | K52: 2100 | L52: 0 | M52: stk
A53: 1 | B53: Kildeplads | D53: Målere og transmittere | E53: Niveautransmitter | F53: 10 | G53: Polka | H53: STD | I53: 4950 | J53: Prishåndbogen | K53: 2100 | L53: 0 | M53: stk
A54: 1 | B54: Kildeplads | D54: Målere og transmittere | E54: Tryktransmitter 0-10 bar | F54: 10 | G54: Polka | H54: STD | I54: 4450 | J54: Prishåndbogen | K54: 2100 | L54: 0 | M54: stk
A55: 0 | B55: Kildeplads | D55: Råvandsstation | E55: Terrænliggende råvandsstation lille | F55: 30 | G55: Polka | H55: STD | I55: 33624 | J55: Prishåndbogen | K55: 0 | L55: 0 | M55: stk
A56: 0 | B56: Kildeplads | D56: Råvandsstation | E56: Terrænliggende råvandsstation stor | F56: 30 | G56: Polka | H56: BAT | I56: 42699 | J56: Prishåndbogen | K56: 0 | L56: 0 | M56: stk
A57: 0 | B57: Kildeplads | D57: Råvandsstation | E57: Adgangsalarm | F57: 10 | G57: Polka | H57: STD | I57: 4050 | J57: Prishåndbogen | K57: 0 | L57: 0 | M57: stk
A58: 1 | B58: Kildeplads | D58: Indhegning | E58: Hegn, 2 m højt | F58: 15 | G58: Polka | H58: STD | I58: 665 | J58: Prishåndbogen | K58: 0 | L58: 0 | M58: lbm
A59: 1 | B59: Kildeplads | D59: Indhegning | E59: Låge | F59: 15 | G59: Polka | H59: STD | I59: 16610 | J59: Prishåndbogen | K59: 0 | L59: 0 | M59: stk
A60: 0 | B60: Kildeplads | D60: Råvandsledning | E60: Ø63mm PN10, Lev og læg | F60: 90 | G60: Erfaringstal | H60: STD | I60: 104 | J60: Prishåndbogen | K60: 0 | L60: 5 | M60: lbm | N60: 0 - 25 | O60: 25 - 50
A61: 0 | B61: Kildeplads | D61: Råvandsledning | E61: Ø75mm PN10, Lev og læg | F61: 90 | G61: Erfaringstal | H61: STD | I61: 125 | J61: Prishåndbogen | K61: 0 | L61: 5 | M61: lbm | N61: 0 - 25 | O61: 25 - 50
A62: 0 | B62: Kildeplads | D62: Råvandsledning | E62: Ø90mm PN10, Lev og læg | F62: 90 | G62: Erfaringstal | H62: STD | I62: 162 | J62: Prishåndbogen | K62: 0 | L62: 5 | M62: lbm | N62: 0 - 25 | O62: 25 - 50
A63: 0 | B63: Kildeplads | D63: Råvandsledning | E63: Ø110mm PN10, Lev og læg | F63: 90 | G63: Erfaringstal | H63: STD | I63: 204 | J63: Prishåndbogen | K63: 0 | L63: 5 | M63: lbm | N63: 0 - 25 | O63: 25 - 50
A64: 0 | B64: Kildeplads | D64: Råvandsledning | E64: Ø160mm PN10, Lev og læg | F64: 90 | G64: Erfaringstal | H64: STD | I64: 334 | J64: Prishåndbogen | K64: 0 | L64: 5 | M64: lbm | N64: 25 - 50 | O64: > 100
A65: 0 | B65: Kildeplads | D65: Råvandsledning | E65: Ø200mm PN10, Lev og læg | F65: 90 | G65: Erfaringstal | H65: STD | I65: 538 | J65: Prishåndbogen | K65: 0 | L65: 5 | M65: lbm | N65: 25 - 50 | O65: > 100
A66: 0 | B66: Kildeplads | D66: Råvandsledning | E66: Ø225mm PN10, Lev og læg | F66: 90 | G66: Erfaringstal | H66: STD | I66: 639 | J66: Prishåndbogen | K66: 0 | L66: 5 | M66: lbm | N66: 25 - 50 | O66: > 100
A67: 0 | B67: Kildeplads | D67: Råvandsledning | E67: Ø250mm PN10, Lev og læg | F67: 90 | G67: Erfaringstal | H67: STD | I67: 788 | J67: Prishåndbogen | K67: 0 | L67: 5 | M67: lbm | N67: 25 - 50 | O67: > 100
A68: 0 | B68: Kildeplads | D68: Råvandsledning | E68: Ø315mm PN10, Lev og læg | F68: 90 | G68: Erfaringstal | H68: STD | I68: 1222 | J68: Prishåndbogen | K68: 0 | L68: 5 | M68: lbm | N68: 25 - 50 | O68: > 100
A69: 0 | B69: Kildeplads | D69: Råvandsledning | E69: Ø63mm PN16, Lev og læg | F69: 110 | G69: Erfaringstal | H69: STD | I69: 132.08 | J69: Erfaringstal | K69: 0 | L69: 5 | M69: lbm | N69: 0 - 25 | O69: 25 - 50
A70: 0 | B70: Kildeplads | D70: Råvandsledning | E70: Ø75mm PN16, Lev og læg | F70: 110 | G70: Erfaringstal | H70: STD | I70: 154.4471154 | J70: Erfaringstal | K70: 0 | L70: 5 | M70: lbm | N70: 0 - 25 | O70: 25 - 50
A71: 0 | B71: Kildeplads | D71: Råvandsledning | E71: Ø90mm PN16, Lev og læg | F71: 110 | G71: Erfaringstal | H71: STD | I71: 205.2364865 | J71: Erfaringstal | K71: 0 | L71: 5 | M71: lbm | N71: 0 - 25 | O71: 25 - 50
A72: 0 | B72: Kildeplads | D72: Råvandsledning | E72: Ø110mm PN16, Lev og læg | F72: 110 | G72: Erfaringstal | H72: STD | I72: 249.1327434 | J72: Erfaringstal | K72: 0 | L72: 5 | M72: lbm | N72: 0 - 25 | O72: 25 - 50
A73: 0 | B73: Kildeplads | D73: Råvandsledning | E73: Ø160mm PN16, Lev og læg | F73: 110 | G73: Erfaringstal | H73: STD | I73: 439.7918552 | J73: Erfaringstal | K73: 0 | L73: 5 | M73: lbm | N73: 25 - 50 | O73: > 100
A74: 0 | B74: Kildeplads | D74: Råvandsledning | E74: Ø200mm PN16, Lev og læg | F74: 110 | G74: Erfaringstal | H74: STD | I74: 696.7793696 | J74: Erfaringstal | K74: 0 | L74: 5 | M74: lbm | N74: 25 - 50 | O74: > 100
A75: 0 | B75: Kildeplads | D75: Råvandsledning | E75: Ø225mm PN16, Lev og læg | F75: 110 | G75: Erfaringstal | H75: STD | I75: 815.08 | J75: Erfaringstal | K75: 0 | L75: 5 | M75: lbm | N75: 25 - 50 | O75: > 100
A76: 0 | B76: Kildeplads | D76: Råvandsledning | E76: Ø250mm PN16, Lev og læg | F76: 110 | G76: Erfaringstal | H76: STD | I76: 997.1621622 | J76: Erfaringstal | K76: 0 | L76: 5 | M76: lbm | N76: 25 - 50 | O76: > 100
A77: 0 | B77: Kildeplads | D77: Råvandsledning | E77: Ø315mm PN16, Lev og læg | F77: 110 | G77: Erfaringstal | H77: STD | I77: 1557.536697 | J77: Erfaringstal | K77: 0 | L77: 5 | M77: lbm | N77: 25 - 50 | O77: > 100
A78: 1 | B78: Kildeplads | D78: Sløjfning | E78: Sløjfning af boring | F78: 1 | G78: Erfaringstal | H78: STD | I78: 408.45 | J78: Prishåndbogen | K78: 0 | L78: 0 | M78: lbm
A79: 1 | B79: Kildeplads | D79: Sløjfning | E79: Sløjfning af brønd | F79: 1 | G79: Erfaringstal | H79: STD | I79: 1162.51 | J79: Prishåndbogen | K79: 0 | L79: 0 | M79: lbm
A80: 1 | B80: Kildeplads | D80: Sløjfning | E80: Sløjfning af boring i brønd | F80: 1 | G80: Erfaringstal | H80: STD | I80: 706.93 | J80: Prishåndbogen | K80: 0 | L80: 0 | M80: lbm
A81: 1 | B81: Kildeplads | D81: Sløjfning | E81: Sløjfning af boring ved overboring | F81: 1 | G81: Erfaringstal | H81: BAT | I81: 10000 | J81: Erfaringstal | K81: 0 | L81: 0 | M81: lbm
A82: 0 | B82: Vandværk | D82: Beluftning | E82: Pladebelufter | F82: 25 | G82: Erfaringstal | H82: BAT | I82: 13700 | J82: Prishåndbogen | K82: 642 | L82: 24 | M82: m3 | Z82: simpel | AA82: moderat
A83: 0 | B83: Vandværk | D83: Beluftning | E83: Iltningsspor | F83: 25 | G83: Erfaringstal | H83: BAT | I83: 9100 | J83: Prishåndbogen | K83: 458 | L83: 96 | M83: m3 | Z83: simpel | AA83: vanskelig
A84: 0 | B84: Vandværk | D84: Beluftning | E84: Ren ilt | F84: 25 | G84: Polka | H84: STOA | I84: 6700 | J84: Prishåndbogen | K84: 693 | L84: 0 | M84: m3 | T84: 500.000 - 1 mio | U84: > 1 mio | Z84: vanskelig | AA84: meget vanskelig
A85: 0 | B85: Vandværk | D85: Beluftning | E85: Iltningsbeholder | F85: 25 | G85: Erfaringstal | H85: STD | I85: 7000 | J85: Prishåndbogen | K85: 224 | L85: 0 | M85: m3 | Z85: simpel | AA85: moderat
A86: 1 | B86: Vandværk | D86: Filtrering | E86: Åbne filtre | F86: 50 | G86: Polka | H86: STD | I86: 8073.2 | J86: Prishåndbogen | K86: 698 | L86: 48 | M86: m3 | T86: 0 - 100.000 | U86: 250.000 - 500.000 | Z86: simpel | AA86: vanskelig
A87: 1 | B87: Vandværk | D87: Filtrering | E87: Trykfilter 10 m3/t | F87: 25 | G87: Polka | H87: BAT | I87: 276422 | J87: Prishåndbogen | K87: 3275 | L87: 1200 | M87: stk | N87: 0 - 25 | O87: 0 - 25 | T87: 0 - 100.000 | U87: 0 - 100.000
A88: 1 | B88: Vandværk | D88: Filtrering | E88: Trykfilter 20 m3/t | F88: 25 | G88: Polka | H88: BAT | I88: 319971 | J88: Prishåndbogen | K88: 3475 | L88: 1680 | M88: stk | N88: 0 - 25 | O88: 0 - 25 | T88: 0 - 100.000 | U88: 100.000 - 250.000
A89: 1 | B89: Vandværk | D89: Filtrering | E89: Trykfilter 30 m3/t | F89: 25 | G89: Polka | H89: BAT | I89: 440708 | J89: Prishåndbogen | K89: 3775 | L89: 2200 | M89: stk | N89: 0 - 25 | O89: 25 - 50 | T89: 0 - 100.000 | U89: 250.000 - 500.000
A90: 1 | B90: Vandværk | D90: Filtrering | E90: Magnomasse i trykfilter | F90: 40 | G90: Erfaringstal | H90: STD | I90: 5370 | J90: Prishåndbogen | K90: 133 | L90: 4 | M90: m3 | N90: 0 - 25 | O90: > 100 | T90: 0 - 100.000 | U90: > 1 mio
A91: 0 | B91: Vandværk | D91: Skylleanlæg | E91: Returskylningsanlæg | F91: 25 | G91: Polka | H91: STD | I91: 16142 | J91: Prishåndbogen | K91: 32730 | L91: 4500 | M91: anlæg | N91: 0 - 25 | O91: 50 - 100 | T91: 0 - 100.000 | U91: 500.000 - 1 mio
A92: 0 | B92: Vandværk | D92: Skylleanlæg | E92: Skyllevandsbeholder 10 m3 | F92: 50 | G92: Polka | H92: STD | I92: 10648 | J92: Prishåndbogen | K92: 700 | L92: 2625 | M92: stk
A93: 0 | B93: Vandværk | D93: Skylleanlæg | E93: Bundfældningsbassin 30-80 m3 | F93: 50 | G93: Polka | H93: STD | I93: 4200 | J93: Prishåndbogen | K93: 60 | L93: 136 | M93: m3 | N93: 0 - 25 | O93: 50 - 100
A94: 0 | B94: Vandværk | D94: Skylleanlæg | E94: Bundfældningsbassin 80-120 m3 | F94: 50 | G94: Polka | H94: STD | I94: 4000 | J94: Prishåndbogen | K94: 42 | L94: 125 | M94: m3 | N94: 25 - 50 | O94: > 100
A95: 0 | B95: Vandværk | D95: Skylleanlæg | E95: Ventilbrønd Ø1250 | F95: 50 | G95: Polka | H95: STD | I95: 27571 | J95: Prishåndbogen | K95: 2250 | L95: 1000 | M95: stk
A96: 1 | B96: Vandværk | D96: Rentvandsbeholder | E96: Rentvandsbeholder (in-situ støbt) | F96: 50 | G96: Polka | H96: BAT | I96: 4399 | J96: Prishåndbogen | K96: 32 | L96: 40 | M96: m3
A97: 1 | B97: Vandværk | D97: Rentvandsbeholder | E97: Rentvandsbeholder (in-situ støbt uden dæk) | F97: 50 | G97: Polka | H97: BAT | I97: 2304 | J97: Prishåndbogen | K97: 19 | L97: 51 | M97: m3
A98: 1 | B98: Vandværk | D98: Rentvandsbeholder | E98: Rentvandsbeholder (elementer) | F98: 50 | G98: Polka | H98: STD | I98: 3100 | J98: Prishåndbogen | K98: 19 | L98: 61 | M98: m3
A99: 1 | B99: Vandværk | D99: Rentvandsbeholder | E99: Rustfri, stående i bygning | F99: 50 | G99: Polka | H99: STOA | I99: 4189 | J99: Prishåndbogen | K99: 9 | L99: 7 | M99: m3
A100: 1 | B100: Vandværk | D100: Rentvandsbeholder | E100: Rustfri, liggende i bygning | F100: 50 | G100: Polka | H100: STOA | I100: 4500 | J100: Erfaringstal | K100: 9 | L100: 5 | M100: m3
A101: 0 | B101: Vandværk | D101: Udvidet vandbehandling | E101: Adsorptivt granulat | F101: 30 | G101: Erfaringstal | H101: BAT | I101: 5500 | J101: Erfaringstal | K101: 252 | L101: 20 | M101: m3 | Z101: moderat | AA101: meget vanskelig
A102: 0 | B102: Vandværk | D102: Udvidet vandbehandling | E102: Elektrolyse | F102: 40 | G102: Erfaringstal | H102: BAT | I102: 129500 | J102: Erfaringstal | K102: 515 | L102: 800 | M102: m3 | N102: 0 - 25 | O102: 25 - 50 | Z102: moderat | AA102: meget vanskelig
A103: 0 | B103: Vandværk | D103: Udvidet vandbehandling | E103: Ionbytning | F103: 40 | G103: Erfaringstal | H103: BAT | I103: 50500 | J103: Erfaringstal | K103: 5857 | L103: 100 | M103: m3 | Z103: moderat | AA103: meget vanskelig
A104: 0 | B104: Vandværk | D104: Udvidet vandbehandling | E104: Kemikaliedosering | F104: 20 | G104: Erfaringstal | H104: BAT | I104: 66393 | J104: Prishåndbogen | K104: 785 | L104: 0 | M104: m3 | Z104: moderat | AA104: meget vanskelig
A105: 0 | B105: Vandværk | D105: Udvidet vandbehandling | E105: Kemisk oxidation | F105: 30 | G105: Erfaringstal | H105: BAT | I105: 6700 | J105: Erfaringstal | K105: 770 | L105: 33 | M105: m3 | Z105: moderat | AA105: meget vanskelig
A106: 0 | B106: Vandværk | D106: Udvidet vandbehandling | E106: Kulfiltrering | F106: 25 | G106: Erfaringstal | H106: STD | I106: 8000 | J106: Erfaringstal | K106: 1616 | L106: 970 | M106: m3 | Z106: moderat | AA106: meget vanskelig
A107: 0 | B107: Vandværk | D107: Udvidet vandbehandling | E107: Membranfiltrering | F107: 20 | G107: Erfaringstal | H107: STOA | I107: 172000 | J107: Erfaringstal | K107: 7484 | L107: 0 | M107: m3 | N107: 25 - 50 | O107: > 100 | Z107: vanskelig | AA107: meget vanskelig
A108: 0 | B108: Vandværk | D108: Udvidet vandbehandling | E108: Pellet softening | F108: 40 | G108: Erfaringstal | H108: BAT | I108: 72600 | J108: Erfaringstal | K108: 7468 | L108: 50 | M108: m3 | N108: 50 - 100 | O108: > 100 | T108: 250.000 - 500.000 | U108: > 1 mio | Z108: vanskelig | AA108: meget vanskelig
A109: 0 | B109: Vandværk | D109: Udvidet vandbehandling | E109: Stripning | F109: 30 | G109: Erfaringstal | H109: BAT | I109: 7000 | J109: Erfaringstal | K109: 406 | L109: 0 | M109: m3 | Z109: vanskelig | AA109: meget vanskelig
A110: 1 | B110: Vandværk | D110: Maskin / El | E110: Forsyning | F110: 70 | G110: Erfaringstal | H110: STD | I110: 225 | J110: Erfaringstal | K110: 7 | L110: 0 | M110: m3
A111: 1 | B111: Vandværk | D111: Maskin / El | E111: Hovedtavle | F111: 40 | G111: Erfaringstal | H111: STD | I111: 500 | J111: Erfaringstal | K111: 28 | L111: 24 | M111: m3
A112: 1 | B112: Vandværk | D112: Maskin / El | E112: Maskintavle | F112: 40 | G112: Erfaringstal | H112: STD | I112: 2400 | J112: Erfaringstal | K112: 52 | L112: 42 | M112: m3
A113: 1 | B113: Vandværk | D113: Maskin / El | E113: Føringsveje og kabling | F113: 50 | G113: Erfaringstal | H113: STD | I113: 4300 | J113: Erfaringstal | K113: 66 | L113: 0 | M113: m3
A114: 1 | B114: Vandværk | D114: Maskin / El | E114: Nødstrømsaggregat 12kW | F114: 40 | G114: Erfaringstal | H114: STD | I114: 113237 | J114: Erfaringstal | K114: 19900 | L114: 1500 | M114: anlæg | T114: 500.000 - 1 mio | U114: > 1 mio
A115: 1 | B115: Vandværk | D115: Maskin / El | E115: Nødstrømsaggregat 16kW | F115: 40 | G115: Erfaringstal | H115: STD | I115: 125136 | J115: Erfaringstal | K115: 21900 | L115: 1500 | M115: anlæg | T115: 500.000 - 1 mio | U115: > 1 mio
A116: 1 | B116: Vandværk | D116: Maskin / El | E116: Nødstrømsaggregat 24kW | F116: 40 | G116: Erfaringstal | H116: STD | I116: 135017 | J116: Erfaringstal | K116: 25900 | L116: 1500 | M116: anlæg | T116: 500.000 - 1 mio | U116: > 1 mio
A117: 0 | B117: Vandværk | D117: Styring | E117: Hovedcentral | F117: 40 | G117: Erfaringstal | H117: BAT | I117: 5150 | J117: Erfaringstal | K117: 152 | L117: 75 | M117: m3
A118: 0 | B118: Vandværk | D118: Styring | E118: Undertavler | F118: 40 | G118: Erfaringstal | H118: BAT | I118: 1700 | J118: Erfaringstal | K118: 152 | L118: 0 | M118: m3
A119: 0 | B119: Vandværk | D119: Styring | E119: Føringsveje og kabling | F119: 50 | G119: Erfaringstal | H119: BAT | I119: 6300 | J119: Erfaringstal | K119: 66 | L119: 0 | M119: m3
A120: 1 | B120: Vandværk | D120: Bygning | E120: Let bygning | F120: 75 | G120: Polka | H120: STD | I120: 13000 | J120: Erfaringstal | K120: 153 | L120: 22 | M120: m2
A121: 1 | B121: Vandværk | D121: Bygning | E121: Tung bygning | F121: 75 | G121: Polka | H121: BAT | I121: 15500 | J121: Erfaringstal | K121: 138 | L121: 22 | M121: m2
A122: 1 | B122: Vandværk | D122: Bygning | E122: Affugtning 90 m3/t (luft) | F122: 15 | G122: Erfaringstal | H122: BAT | I122: 33636 | J122: Prishåndbogen | K122: 43300 | L122: 533 | M122: anlæg
A123: 1 | B123: Vandværk | D123: Bygning | E123: Affugtning 120 m3/t (luft) | F123: 15 | G123: Erfaringstal | H123: BAT | I123: 36356 | J123: Prishåndbogen | K123: 59800 | L123: 667 | M123: anlæg
A124: 1 | B124: Vandværk | D124: Bygning | E124: Affugtning 180 m3/t (luft) | F124: 15 | G124: Erfaringstal | H124: BAT | I124: 40428 | J124: Prishåndbogen | K124: 80300 | L124: 800 | M124: anlæg
A125: 0 | B125: Distribution | D125: Rentvandsbeholder | E125: Rentvandsbeholder (in-situ støbt) | F125: 50 | G125: Polka | H125: BAT | I125: 4399 | J125: Prishåndbogen | K125: 32 | L125: 40 | M125: m3
A126: 0 | B126: Distribution | D126: Rentvandsbeholder | E126: Rentvandsbeholder (in-situ støbt uden dæk) | F126: 50 | G126: Polka | H126: BAT | I126: 2304 | J126: Prishåndbogen | K126: 19 | L126: 51 | M126: m3
A127: 0 | B127: Distribution | D127: Rentvandsbeholder | E127: Rentvandsbeholder (elementer) | F127: 50 | G127: Polka | H127: STD | I127: 3100 | J127: Prishåndbogen | K127: 19 | L127: 61 | M127: m3
A128: 0 | B128: Distribution | D128: Rentvandsbeholder | E128: Rustfri, stående i bygning | F128: 50 | G128: Polka | H128: STOA | I128: 4189 | J128: Prishåndbogen | K128: 9 | L128: 7 | M128: m3
A129: 0 | B129: Distribution | D129: Rentvandsbeholder | E129: Rustfri, liggende i bygning | F129: 50 | G129: Polka | H129: STOA | I129: 4500 | J129: Erfaringstal | K129: 9 | L129: 5 | M129: m3
A130: 1 | B130: Distribution | D130: Udpumpningsanlæg | E130: Pumpe, 3m3/t, 35mvs, 0,75kW | F130: 15 | G130: Erfaringstal | H130: STD | I130: 21973 | J130: Prishåndbogen | K130: 15950 | L130: 267 | M130: stk | N130: 0 - 25 | O130: 25 - 50 | V130: 0 - 30 | W130: 30 - 60
A131: 1 | B131: Distribution | D131: Udpumpningsanlæg | E131: Pumpe, 6m3/t, 35mvs, 1,50kW | F131: 15 | G131: Erfaringstal | H131: STD | I131: 27898 | J131: Prishåndbogen | K131: 27400 | L131: 333 | M131: stk | N131: 0 - 25 | O131: 25 - 50 | V131: 0 - 30 | W131: 30 - 60
A132: 1 | B132: Distribution | D132: Udpumpningsanlæg | E132: Pumpe, 10m3/t, 35mvs, 2,20kW | F132: 15 | G132: Erfaringstal | H132: STD | I132: 31232 | J132: Prishåndbogen | K132: 38120 | L132: 400 | M132: stk | N132: 0 - 25 | O132: 25 - 50 | V132: 0 - 30 | W132: 30 - 60
A133: 1 | B133: Distribution | D133: Udpumpningsanlæg | E133: Pumpe, 20m3/t, 35mvs, 4,00kW | F133: 15 | G133: Erfaringstal | H133: STD | I133: 42747 | J133: Prishåndbogen | K133: 64900 | L133: 467 | M133: stk | N133: 0 - 25 | O133: 25 - 50 | V133: 0 - 30 | W133: 30 - 60
A134: 1 | B134: Distribution | D134: Udpumpningsanlæg | E134: Pumpe, 30m3/t, 35mvs, 5,50kW | F134: 15 | G134: Erfaringstal | H134: STD | I134: 48173 | J134: Prishåndbogen | K134: 87800 | L134: 533 | M134: stk | N134: 25 - 50 | O134: 25 - 50 | V134: 0 - 30 | W134: 30 - 60
A135: 0 | B135: Distribution | D135: Frekvensomformer | E135: For 2 pumper á 2,20kW | F135: 15 | G135: Erfaringstal | H135: STD | I135: 54563 | J135: Erfaringstal | K135: 1400 | L135: 4000 | M135: stk | N135: 0 - 25 | O135: 0 - 25
A136: 0 | B136: Distribution | D136: Frekvensomformer | E136: For 2 pumper á 4,00kW | F136: 15 | G136: Erfaringstal | H136: STD | I136: 57226 | J136: Erfaringstal | K136: 1400 | L136: 4000 | M136: stk | N136: 0 - 25 | O136: 25 - 50
A137: 0 | B137: Distribution | D137: Frekvensomformer | E137: For 2 pumper á 5,50kW | F137: 15 | G137: Erfaringstal | H137: STD | I137: 60514 | J137: Erfaringstal | K137: 1400 | L137: 4000 | M137: stk | N137: 0 - 25 | O137: 25 - 50
A138: 1 | B138: Distribution | D138: Flowmåler | E138: Magnetisk induktiv 20m3/t | F138: 10 | G138: Erfaringstal | H138: BAT | I138: 42823 | J138: Prishåndbogen | K138: 0 | L138: 0 | M138: stk | N138: 0 - 25 | O138: 0 - 25
A139: 1 | B139: Distribution | D139: Flowmåler | E139: Magnetisk induktiv 50m3/t | F139: 10 | G139: Erfaringstal | H139: BAT | I139: 66358 | J139: Prishåndbogen | K139: 0 | L139: 0 | M139: stk | N139: 0 - 25 | O139: 25 - 50
A140: 0 | B140: Distribution | D140: Trykforøgeranlæg | E140: Overbygning | F140: 50 | G140: Polka | H140: STD | I140: 136826 | J140: Prishåndbogen | K140: 0 | L140: 0 | M140: stk
A141: 0 | B141: Distribution | D141: Trykforøgeranlæg | E141: Trykforøgerstation 5-10m3/t | F141: 15 | G141: Erfaringstal | H141: STD | I141: 104633 | J141: Prishåndbogen | K141: 38500 | L141: 533 | M141: stk | N141: 0 - 25 | O141: 0 - 25
A142: 0 | B142: Distribution | D142: Trykforøgeranlæg | E142: Trykforøgerstation 12-20m3/t | F142: 15 | G142: Erfaringstal | H142: STD | I142: 130389 | J142: Prishåndbogen | K142: 43500 | L142: 667 | M142: stk | N142: 0 - 25 | O142: 0 - 25
A143: 1 | B143: Distribution | D143: UV-anlæg | E143: 10m3/t | F143: 10 | G143: Erfaringstal | H143: STD | I143: 154497 | J143: Prishåndbogen | K143: 14304 | L143: 6180 | M143: stk | N143: 0 - 25 | O143: 0 - 25 | Z143: moderat | AA143: meget vanskelig
A144: 1 | B144: Distribution | D144: UV-anlæg | E144: 20m3/t | F144: 10 | G144: Erfaringstal | H144: STD | I144: 186577 | J144: Prishåndbogen | K144: 25108 | L144: 6180 | M144: stk | N144: 0 - 25 | O144: 0 - 25 | Z144: moderat | AA144: meget vanskelig
A145: 1 | B145: Distribution | D145: UV-anlæg | E145: 40m3/t | F145: 10 | G145: Erfaringstal | H145: STD | I145: 217388 | J145: Prishåndbogen | K145: 46716 | L145: 6180 | M145: stk | N145: 0 - 25 | O145: 25 - 50 | Z145: moderat | AA145: meget vanskelig
A146: 0 | B146: Distribution | D146: Sektionsbrønd | E146: Ø1600mm PE m. alu. dæksel | F146: 50 | G146: Polka | H146: BAT | I146: 200000 | J146: Erfaringstal | K146: 1700 | L146: 167 | M146: stk
A147: 0 | B147: Distribution | D147: Sektionsbrønd | E147: Ø2000mm PE m. alu. Dæksel | F147: 50 | G147: Polka | H147: BAT | I147: 250000 | J147: Erfaringstal | K147: 1700 | L147: 167 | M147: stk
A148: 1 | B148: Distribution | D148: Ledningsgrav | E148: ø50-ø110mm rør | F148: 110 | G148: Erfaringstal | H148: STD | I148: 513 | J148: Prishåndbogen | K148: 0 | L148: 0 | M148: lbm | N148: 0 - 25 | O148: 50 - 100
A149: 1 | B149: Distribution | D149: Ledningsgrav | E149: ø160-ø225mm rør | F149: 110 | G149: Erfaringstal | H149: STD | I149: 521 | J149: Prishåndbogen | K149: 0 | L149: 0 | M149: lbm | N149: 25 - 50 | O149: > 100
A150: 1 | B150: Distribution | D150: Ledningsgrav | E150: ø250-ø315mm rør | F150: 110 | G150: Erfaringstal | H150: STD | I150: 628 | J150: Prishåndbogen | K150: 0 | L150: 0 | M150: lbm | N150: 25 - 50 | O150: > 100
A151: 0 | B151: Distribution | D151: Styret underboring | E151: ø32-40mm (Raket) | F151: 90 | G151: Erfaringstal | H151: STD | I151: 803 | J151: Prishåndbogen | K151: 0 | L151: 0 | M151: lbm | N151: 0 - 25 | O151: 0 - 25
A152: 0 | B152: Distribution | D152: Styret underboring | E152: ø50-75mm (Raket) | F152: 90 | G152: Erfaringstal | H152: STD | I152: 1103 | J152: Prishåndbogen | K152: 0 | L152: 0 | M152: lbm | N152: 0 - 25 | O152: 0 - 25
A153: 0 | B153: Distribution | D153: Styret underboring | E153: Skylleboring Ø90mm | F153: 90 | G153: Erfaringstal | H153: STD | I153: 25612 | J153: Prishåndbogen | K153: 0 | L153: 0 | M153: stk | N153: 0 - 25 | O153: 50 - 100
A154: 0 | B154: Distribution | D154: Styret underboring | E154: Skylleboring Ø110mm | F154: 90 | G154: Erfaringstal | H154: STD | I154: 26566 | J154: Prishåndbogen | K154: 0 | L154: 0 | M154: stk | N154: 0 - 25 | O154: 50 - 100
A155: 0 | B155: Distribution | D155: Styret underboring | E155: Skylleboring Ø160mm | F155: 90 | G155: Erfaringstal | H155: STD | I155: 30072 | J155: Prishåndbogen | K155: 0 | L155: 0 | M155: stk | N155: 25 - 50 | O155: > 100
A156: 0 | B156: Distribution | D156: Styret underboring | E156: Skylleboring Ø200mm | F156: 90 | G156: Erfaringstal | H156: STD | I156: 42112 | J156: Prishåndbogen | K156: 0 | L156: 0 | M156: stk | N156: 25 - 50 | O156: > 100
A157: 0 | B157: Distribution | D157: Styret underboring | E157: Skylleboring Ø225mm | F157: 90 | G157: Erfaringstal | H157: STD | I157: 49500 | J157: Prishåndbogen | K157: 0 | L157: 0 | M157: stk | N157: 25 - 50 | O157: > 100
A158: 0 | B158: Distribution | D158: Styret underboring | E158: Skylleboring Ø250mm | F158: 90 | G158: Erfaringstal | H158: STD | I158: 52822 | J158: Prishåndbogen | K158: 0 | L158: 0 | M158: stk | N158: 25 - 50 | O158: > 100
A159: 0 | B159: Distribution | D159: Styret underboring | E159: Skylleboring Ø315mm | F159: 90 | G159: Erfaringstal | H159: STD | I159: 62743 | J159: Prishåndbogen | K159: 0 | L159: 0 | M159: stk | N159: 25 - 50 | O159: > 100
A160: 0 | B160: Distribution | D160: Styret underboring | E160: Krydsning kørebane Ø90mm | F160: 90 | G160: Erfaringstal | H160: STD | I160: 32407 | J160: Prishåndbogen | K160: 0 | L160: 0 | M160: stk | N160: 0 - 25 | O160: 50 - 100
A161: 0 | B161: Distribution | D161: Styret underboring | E161: Krydsning kørebane Ø110mm | F161: 90 | G161: Erfaringstal | H161: STD | I161: 35610 | J161: Prishåndbogen | K161: 0 | L161: 0 | M161: stk | N161: 0 - 25 | O161: 50 - 100
A162: 0 | B162: Distribution | D162: Styret underboring | E162: Krydsning kørebane Ø160mm | F162: 90 | G162: Erfaringstal | H162: STD | I162: 63886 | J162: Prishåndbogen | K162: 0 | L162: 0 | M162: stk | N162: 25 - 50 | O162: > 100
A163: 0 | B163: Distribution | D163: Styret underboring | E163: Krydsning kørebane Ø200mm | F163: 90 | G163: Erfaringstal | H163: STD | I163: 79811 | J163: Prishåndbogen | K163: 0 | L163: 0 | M163: stk | N163: 25 - 50 | O163: > 100
A164: 0 | B164: Distribution | D164: Styret underboring | E164: Krydsning kørebane Ø225mm | F164: 90 | G164: Erfaringstal | H164: STD | I164: 83957 | J164: Prishåndbogen | K164: 0 | L164: 0 | M164: stk | N164: 25 - 50 | O164: > 100
A165: 0 | B165: Distribution | D165: Styret underboring | E165: Krydsning kørebane Ø250mm | F165: 90 | G165: Erfaringstal | H165: STD | I165: 97707 | J165: Prishåndbogen | K165: 0 | L165: 0 | M165: stk | N165: 25 - 50 | O165: > 100
A166: 0 | B166: Distribution | D166: Styret underboring | E166: Krydsning kørebane Ø315mm | F166: 90 | G166: Erfaringstal | H166: STD | I166: 125640 | J166: Prishåndbogen | K166: 0 | L166: 0 | M166: stk | N166: 25 - 50 | O166: > 100
A167: 0 | B167: Distribution | D167: Styret underboring | E167: Krydsning jernbane Ø90mm | F167: 90 | G167: Erfaringstal | H167: STD | I167: 165929 | J167: Prishåndbogen | K167: 0 | L167: 0 | M167: stk | N167: 0 - 25 | O167: 50 - 100
A168: 0 | B168: Distribution | D168: Styret underboring | E168: Krydsning jernbane Ø110mm | F168: 90 | G168: Erfaringstal | H168: STD | I168: 171825 | J168: Prishåndbogen | K168: 0 | L168: 0 | M168: stk | N168: 0 - 25 | O168: 50 - 100
A169: 0 | B169: Distribution | D169: Styret underboring | E169: Krydsning jernbane Ø160mm | F169: 90 | G169: Erfaringstal | H169: STD | I169: 183111 | J169: Prishåndbogen | K169: 0 | L169: 0 | M169: stk | N169: 25 - 50 | O169: > 100
A170: 0 | B170: Distribution | D170: Styret underboring | E170: Krydsning jernbane Ø200mm | F170: 90 | G170: Erfaringstal | H170: STD | I170: 202633 | J170: Prishåndbogen | K170: 0 | L170: 0 | M170: stk | N170: 25 - 50 | O170: > 100
A171: 0 | B171: Distribution | D171: Styret underboring | E171: Krydsning jernbane Ø225mm | F171: 90 | G171: Erfaringstal | H171: STD | I171: 208999 | J171: Prishåndbogen | K171: 0 | L171: 0 | M171: stk | N171: 25 - 50 | O171: > 100
A172: 0 | B172: Distribution | D172: Styret underboring | E172: Krydsning jernbane Ø250mm | F172: 90 | G172: Erfaringstal | H172: STD | I172: 226370 | J172: Prishåndbogen | K172: 0 | L172: 0 | M172: stk | N172: 25 - 50 | O172: > 100
A173: 0 | B173: Distribution | D173: Styret underboring | E173: Krydsning jernbane Ø315mm | F173: 90 | G173: Erfaringstal | H173: STD | I173: 258641 | J173: Prishåndbogen | K173: 0 | L173: 0 | M173: stk | N173: 25 - 50 | O173: > 100
A174: 1 | B174: Distribution | D174: Transmissionsledninger | E174: ø250mm PN10, Lev og læg | F174: 90 | G174: Erfaringstal | H174: STD | I174: 788 | J174: Erfaringstal | K174: 0 | L174: 0 | M174: lbm | N174: 25 - 50 | O174: > 100
A175: 1 | B175: Distribution | D175: Transmissionsledninger | E175: ø315mm PN10, Lev og læg | F175: 90 | G175: Erfaringstal | H175: STD | I175: 1222 | J175: Erfaringstal | K175: 0 | L175: 0 | M175: lbm | N175: 25 - 50 | O175: > 100
A176: 1 | B176: Distribution | D176: Transmissionsledninger | E176: ø250mm PN16, Lev og læg | F176: 110 | G176: Erfaringstal | H176: STD | I176: 997 | J176: Erfaringstal | K176: 0 | L176: 0 | M176: lbm | N176: 25 - 50 | O176: > 100
A177: 1 | B177: Distribution | D177: Transmissionsledninger | E177: ø315mm PN16, Lev og læg | F177: 110 | G177: Erfaringstal | H177: STD | I177: 1558 | J177: Erfaringstal | K177: 0 | L177: 0 | M177: lbm | N177: 25 - 50 | O177: > 100
A178: 1 | B178: Distribution | D178: Transmissionsledninger | E178: ø250mm, diff. tæt PN10, Lev og læg | F178: 90 | G178: Erfaringstal | H178: STD | I178: 895.5 | J178: Erfaringstal | K178: 0 | L178: 0 | M178: lbm | N178: 25 - 50 | O178: > 100
A179: 1 | B179: Distribution | D179: Transmissionsledninger | E179: ø315mm, diff. tæt PN10, Lev og læg | F179: 90 | G179: Erfaringstal | H179: STD | I179: 1404 | J179: Erfaringstal | K179: 0 | L179: 0 | M179: lbm | N179: 25 - 50 | O179: > 100
A180: 1 | B180: Distribution | D180: Transmissionsledninger | E180: ø250mm, diff. tæt PN16, Lev og læg | F180: 110 | G180: Erfaringstal | H180: STD | I180: 1286 | J180: Erfaringstal | K180: 0 | L180: 0 | M180: lbm | N180: 25 - 50 | O180: > 100
A181: 1 | B181: Distribution | D181: Transmissionsledninger | E181: ø315mm, diff. tæt PN16, Lev og læg | F181: 110 | G181: Erfaringstal | H181: STD | I181: 1976.5 | J181: Erfaringstal | K181: 0 | L181: 0 | M181: lbm | N181: 25 - 50 | O181: > 100
A182: 0 | B182: Distribution | D182: Distributionledninger | E182: Ø160mm PN10, Lev og læg | F182: 90 | G182: Erfaringstal | H182: STD | I182: 334 | J182: Erfaringstal | K182: 0 | L182: 0 | M182: lbm | N182: 25 - 50 | O182: > 100
A183: 0 | B183: Distribution | D183: Distributionledninger | E183: Ø200mm PN10, Lev og læg | F183: 90 | G183: Erfaringstal | H183: STD | I183: 538 | J183: Erfaringstal | K183: 0 | L183: 0 | M183: lbm | N183: 25 - 50 | O183: > 100
A184: 0 | B184: Distribution | D184: Distributionledninger | E184: Ø225mm PN10, Lev og læg | F184: 90 | G184: Erfaringstal | H184: STD | I184: 639 | J184: Erfaringstal | K184: 0 | L184: 0 | M184: lbm | N184: 25 - 50 | O184: > 100
A185: 0 | B185: Distribution | D185: Distributionledninger | E185: Ø160mm PN16, Lev og læg | F185: 110 | G185: Erfaringstal | H185: STD | I185: 440 | J185: Erfaringstal | K185: 0 | L185: 0 | M185: lbm | N185: 25 - 50 | O185: > 100
A186: 0 | B186: Distribution | D186: Distributionledninger | E186: Ø200mm PN16, Lev og læg | F186: 110 | G186: Erfaringstal | H186: STD | I186: 697 | J186: Erfaringstal | K186: 0 | L186: 0 | M186: lbm | N186: 25 - 50 | O186: > 100
A187: 0 | B187: Distribution | D187: Distributionledninger | E187: Ø225mm PN16, Lev og læg | F187: 110 | G187: Erfaringstal | H187: STD | I187: 815 | J187: Erfaringstal | K187: 0 | L187: 0 | M187: lbm | N187: 25 - 50 | O187: > 100
A188: 0 | B188: Distribution | D188: Distributionledninger | E188: Ø160mm, diff. tæt PN10, Lev og læg | F188: 90 | G188: Erfaringstal | H188: STD | I188: 457.25 | J188: Erfaringstal | K188: 0 | L188: 0 | M188: lbm | N188: 25 - 50 | O188: > 100
A189: 0 | B189: Distribution | D189: Distributionledninger | E189: Ø200mm, diff. tæt PN10, Lev og læg | F189: 90 | G189: Erfaringstal | H189: STD | I189: 735.75 | J189: Erfaringstal | K189: 0 | L189: 0 | M189: lbm | N189: 25 - 50 | O189: > 100
A190: 0 | B190: Distribution | D190: Distributionledninger | E190: Ø225mm, diff. tæt PN10, Lev og læg | F190: 90 | G190: Erfaringstal | H190: STD | I190: 761 | J190: Erfaringstal | K190: 0 | L190: 0 | M190: lbm | N190: 25 - 50 | O190: > 100
A191: 0 | B191: Distribution | D191: Distributionledninger | E191: Ø160mm, diff. tæt PN16, Lev og læg | F191: 110 | G191: Erfaringstal | H191: STD | I191: 547.5 | J191: Erfaringstal | K191: 0 | L191: 0 | M191: lbm | N191: 25 - 50 | O191: > 100
A192: 0 | B192: Distribution | D192: Distributionledninger | E192: Ø200mm, diff. tæt PN16, Lev og læg | F192: 110 | G192: Erfaringstal | H192: STD | I192: 893 | J192: Erfaringstal | K192: 0 | L192: 0 | M192: lbm | N192: 25 - 50 | O192: > 100
A193: 0 | B193: Distribution | D193: Distributionledninger | E193: Ø225mm, diff. tæt PN16, Lev og læg | F193: 110 | G193: Erfaringstal | H193: STD | I193: 1047 | J193: Erfaringstal | K193: 0 | L193: 0 | M193: lbm | N193: 25 - 50 | O193: > 100
A194: 1 | B194: Distribution | D194: Forsyningsledninger | E194: Ø63mm PN10, Lev og læg | F194: 90 | G194: Erfaringstal | H194: STD | I194: 104 | J194: Erfaringstal | K194: 0 | L194: 0 | M194: lbm | N194: 0 - 25 | O194: 50 - 100
A195: 1 | B195: Distribution | D195: Forsyningsledninger | E195: Ø75mm PN10, Lev og læg | F195: 90 | G195: Erfaringstal | H195: STD | I195: 125 | J195: Erfaringstal | K195: 0 | L195: 0 | M195: lbm | N195: 0 - 25 | O195: 50 - 100
A196: 1 | B196: Distribution | D196: Forsyningsledninger | E196: Ø90mm PN10, Lev og læg | F196: 90 | G196: Erfaringstal | H196: STD | I196: 162 | J196: Erfaringstal | K196: 0 | L196: 0 | M196: lbm | N196: 0 - 25 | O196: 50 - 100
A197: 1 | B197: Distribution | D197: Forsyningsledninger | E197: Ø110mm PN10, Lev og læg | F197: 90 | G197: Erfaringstal | H197: STD | I197: 204 | J197: Erfaringstal | K197: 0 | L197: 0 | M197: lbm | N197: 0 - 25 | O197: 50 - 100
A198: 1 | B198: Distribution | D198: Forsyningsledninger | E198: Ø63mm PN16, Lev og læg | F198: 110 | G198: Erfaringstal | H198: STD | I198: 132 | J198: Erfaringstal | K198: 0 | L198: 0 | M198: lbm | N198: 0 - 25 | O198: 50 - 100
A199: 1 | B199: Distribution | D199: Forsyningsledninger | E199: Ø75mm PN16, Lev og læg | F199: 110 | G199: Erfaringstal | H199: STD | I199: 154 | J199: Erfaringstal | K199: 0 | L199: 0 | M199: lbm | N199: 0 - 25 | O199: 50 - 100
A200: 1 | B200: Distribution | D200: Forsyningsledninger | E200: Ø90mm PN16, Lev og læg | F200: 110 | G200: Erfaringstal | H200: STD | I200: 205 | J200: Erfaringstal | K200: 0 | L200: 0 | M200: lbm | N200: 0 - 25 | O200: 50 - 100
... 209 more rows

Sheet PrisFaktorer
A7: Vurdering af pris-faktorer | D7: Rammebetingelse 1 | G7: Rammebetingelse 2 | J7: Rammebetingelse 3 | M7: Rammebetingelse 4 | P7: Rammebetingelse 5 | S7: Rammebetingelse 6 | V7: Rammebetingelse 7 | Y7: Rammebetingelse 8 | AB7: Rammebetingelse 9 | AE7: Rammebetingelse 10 | AH7: Rammebetingelse 11 | AK7: Rammebetingelse 12 | AN7: Rammebetingelse 13 | AQ7: Rammebetingelse 14 | AT7: Rammebetingelse 15
D8: Kapacitet (m3/t) | G8: Geografisk placering | J8: Lokalitet (land/by) | M8: Årlig produktion | P8: Løftehøjde | S8: Geo-/hydrologiske vanskeligheder | V8: Råvands-kvalitet
A9: Hoved- funktion | B9: Teknologi- gruppe | C9: Nr | D9: Faktorer | G9: Faktorer | J9: Faktorer | M9: Faktorer | P9: Faktorer | S9: Faktorer | V9: Faktorer | Y9: Faktorer | AB9: Faktorer | AE9: Faktorer | AH9: Faktorer | AK9: Faktorer | AN9: Faktorer | AQ9: Faktorer | AT9: Faktorer
D10: Interval/kategori | E10: Anlæg | F10: Drift | G10: Interval/kategori | H10: Anlæg | I10: Drift | J10: Interval/kategori | K10: Anlæg | L10: Drift | M10: Interval/kategori | N10: Anlæg | O10: Drift | P10: Interval/kategori | Q10: Anlæg | R10: Drift | S10: Interval/kategori | T10: Anlæg | U10: Drift | V10: Interval/kategori | W10: Anlæg | X10: Drift | Y10: Interval/kategori | Z10: Anlæg | AA10: Drift | AB10: Interval/kategori | AC10: Anlæg | AD10: Drift | AE10: Interval/kategori | AF10: Anlæg | AG10: Drift | AH10: Interval/kategori | AI10: Anlæg | AJ10: Drift | AK10: Interval/kategori | AL10: Anlæg | AM10: Drift | AN10: Interval/kategori | AO10: Anlæg | AP10: Drift | AQ10: Interval/kategori | AR10: Anlæg | AS10: Drift | AT10: Interval/kategori | AU10: Anlæg | AV10: Drift
A11: Kildeplads | B11: Forundersøgelse | C11: 1 | D11: 0 - 25 | E11: 1 | F11: 1 | G11: 95 | H11: 1 | I11: 1 | J11: Land | K11: 1 | L11: 1 | M11: 0 - 100.000 | N11: 1 | O11: 1 | P11: 0 - 30 | Q11: 1 | R11: 1 | S11: ingen | T11: 0,9 | U11: 1 | V11: simpel | W11: 1 | X11: 1
C12: 2 | D12: 25 - 50 | E12: 1 | F12: 1 | G12: 100 | H12: 1 | I12: 1 | J12: By | K12: 1 | L12: 1 | M12: 100.000 - 250.000 | N12: 1 | O12: 1 | P12: 30 - 60 | Q12: 1 | R12: 1 | S12: moderat | T12: 1 | U12: 1 | V12: moderat | W12: 1 | X12: 1
C13: 3 | D13: 50 - 100 | E13: 1 | F13: 1 | G13: 110 | H13: 1 | I13: 1 | J13: City | K13: 1 | L13: 1 | M13: 250.000 - 500.000 | N13: 1 | O13: 1 | P13: > 60 | Q13: 1 | R13: 1 | S13: vanskelig | T13: 1,1 | U13: 1 | V13: vanskelig | W13: 1 | X13: 1
C14: 4 | D14: > 100 | E14: 1 | F14: 1 | G14: 115 | H14: 1 | I14: 1 | J14: Indre city | K14: 1 | L14: 1 | M14: 500.000 - 1 mio | N14: 1 | O14: 1 | S14: meget vanskelig | T14: 1,5 | U14: 1 | V14: meget vanskelig | W14: 1 | X14: 1
C15: 5 | M15: > 1 mio | N15: 1 | O15: 1
C16: 6
C17: 7
C18: 8
C19: 9
C20: 10
B21: Boreplads | C21: 1 | D21: 0 - 25 | E21: 1 | F21: 1 | G21: 95 | H21: 0,95 | I21: 1 | J21: Land | K21: 1 | L21: 1 | M21: 0 - 100.000 | N21: 1 | O21: 1 | P21: 0 - 30 | Q21: 1 | R21: 1 | S21: ingen | T21: 1 | U21: 1 | V21: simpel | W21: 1 | X21: 1
C22: 2 | D22: 25 - 50 | E22: 1 | F22: 1 | G22: 100 | H22: 1 | I22: 1 | J22: By | K22: 1,1 | L22: 1 | M22: 100.000 - 250.000 | N22: 1 | O22: 1 | P22: 30 - 60 | Q22: 1 | R22: 1 | S22: moderat | T22: 1 | U22: 1 | V22: moderat | W22: 1 | X22: 1
C23: 3 | D23: 50 - 100 | E23: 1 | F23: 1 | G23: 110 | H23: 1,1 | I23: 1 | J23: City | K23: 1,5 | L23: 1 | M23: 250.000 - 500.000 | N23: 1 | O23: 1 | P23: > 60 | Q23: 1 | R23: 1 | S23: vanskelig | T23: 1,2 | U23: 1 | V23: vanskelig | W23: 1 | X23: 1
C24: 4 | D24: > 100 | E24: 1 | F24: 1 | G24: 115 | H24: 1,15 | I24: 1 | J24: Indre city | K24: 2 | L24: 1 | M24: 500.000 - 1 mio | N24: 1 | O24: 1 | S24: meget vanskelig | T24: 1,5 | U24: 1 | V24: meget vanskelig | W24: 1 | X24: 1
C25: 5 | M25: > 1 mio | N25: 1 | O25: 1
C26: 6
C27: 7
C28: 8
C29: 9
C30: 10
B31: Boringsudførelse | C31: 1 | D31: 0 - 25 | E31: 1 | F31: 1 | G31: 95 | H31: 0,95 | I31: 1 | J31: Land | K31: 1 | L31: 1 | M31: 0 - 100.000 | N31: 1 | O31: 1 | P31: 0 - 30 | Q31: 1 | R31: 1 | S31: ingen | T31: 1 | U31: 1 | V31: simpel | W31: 1 | X31: 1
C32: 2 | D32: 25 - 50 | E32: 1 | F32: 1 | G32: 100 | H32: 1 | I32: 1 | J32: By | K32: 1 | L32: 1 | M32: 100.000 - 250.000 | N32: 1 | O32: 1 | P32: 30 - 60 | Q32: 1 | R32: 1 | S32: moderat | T32: 1,1 | U32: 1 | V32: moderat | W32: 1 | X32: 1
C33: 3 | D33: 50 - 100 | E33: 1 | F33: 1 | G33: 110 | H33: 1,1 | I33: 1 | J33: City | K33: 1 | L33: 1 | M33: 250.000 - 500.000 | N33: 1 | O33: 1 | P33: > 60 | Q33: 1 | R33: 1 | S33: vanskelig | T33: 1,5 | U33: 1 | V33: vanskelig | W33: 1 | X33: 1
C34: 4 | D34: > 100 | E34: 1 | F34: 1 | G34: 115 | H34: 1,15 | I34: 1 | J34: Indre city | K34: 1 | L34: 1 | M34: 500.000 - 1 mio | N34: 1 | O34: 1 | S34: meget vanskelig | T34: 3 | U34: 1 | V34: meget vanskelig | W34: 1 | X34: 1
C35: 5 | M35: > 1 mio | N35: 1 | O35: 1
C36: 6
C37: 7
C38: 8
C39: 9
C40: 10
B41: Filter m/gruskastning | C41: 1 | D41: 0 - 25 | E41: 1 | F41: 1 | G41: 95 | H41: 0,95 | I41: 1 | J41: Land | K41: 1 | L41: 1 | M41: 0 - 100.000 | N41: 1 | O41: 1 | P41: 0 - 30 | Q41: 1 | R41: 1 | S41: ingen | T41: 1 | U41: 1 | V41: simpel | W41: 1 | X41: 1
C42: 2 | D42: 25 - 50 | E42: 1 | F42: 1 | G42: 100 | H42: 1 | I42: 1 | J42: By | K42: 1 | L42: 1 | M42: 100.000 - 250.000 | N42: 1 | O42: 1 | P42: 30 - 60 | Q42: 1 | R42: 1 | S42: moderat | T42: 1,1 | U42: 1 | V42: moderat | W42: 1 | X42: 1
C43: 3 | D43: 50 - 100 | E43: 1 | F43: 1 | G43: 110 | H43: 1,1 | I43: 1 | J43: City | K43: 1 | L43: 1 | M43: 250.000 - 500.000 | N43: 1 | O43: 1 | P43: > 60 | Q43: 1 | R43: 1 | S43: vanskelig | T43: 1,2 | U43: 1 | V43: vanskelig | W43: 1 | X43: 1
C44: 4 | D44: > 100 | E44: 1 | F44: 1 | G44: 115 | H44: 1,15 | I44: 1 | J44: Indre city | K44: 1 | L44: 1 | M44: 500.000 - 1 mio | N44: 1 | O44: 1 | S44: meget vanskelig | T44: 1,5 | U44: 1 | V44: meget vanskelig | W44: 1 | X44: 1
C45: 5 | M45: > 1 mio | N45: 1 | O45: 1
C46: 6
C47: 7
C48: 8
C49: 9
C50: 10
B51: Forerør m/udbygning | C51: 1 | D51: 0 - 25 | E51: 1 | F51: 1 | G51: 95 | H51: 0,95 | I51: 1 | J51: Land | K51: 1 | L51: 1 | M51: 0 - 100.000 | N51: 1 | O51: 1 | P51: 0 - 30 | Q51: 1 | R51: 1 | S51: ingen | T51: 1 | U51: 1 | V51: simpel | W51: 1 | X51: 1
C52: 2 | D52: 25 - 50 | E52: 1 | F52: 1 | G52: 100 | H52: 1 | I52: 1 | J52: By | K52: 1 | L52: 1 | M52: 100.000 - 250.000 | N52: 1 | O52: 1 | P52: 30 - 60 | Q52: 1 | R52: 1 | S52: moderat | T52: 1,1 | U52: 1 | V52: moderat | W52: 1 | X52: 1
C53: 3 | D53: 50 - 100 | E53: 1 | F53: 1 | G53: 110 | H53: 1,1 | I53: 1 | J53: City | K53: 1 | L53: 1 | M53: 250.000 - 500.000 | N53: 1 | O53: 1 | P53: > 60 | Q53: 1 | R53: 1 | S53: vanskelig | T53: 1,2 | U53: 1 | V53: vanskelig | W53: 1 | X53: 1
C54: 4 | D54: > 100 | E54: 1 | F54: 1 | G54: 115 | H54: 1,15 | I54: 1 | J54: Indre city | K54: 1 | L54: 1 | M54: 500.000 - 1 mio | N54: 1 | O54: 1 | S54: meget vanskelig | T54: 1,5 | U54: 1 | V54: meget vanskelig | W54: 1 | X54: 1
C55: 5 | M55: > 1 mio | N55: 1 | O55: 1
C56: 6
C57: 7
C58: 8
C59: 9
C60: 10
B61: Tilbagestøbt forerør over åbent indtag | C61: 1 | D61: 0 - 25 | E61: 1 | F61: 1 | G61: 95 | H61: 0,95 | I61: 1 | J61: Land | K61: 1 | L61: 1 | M61: 0 - 100.000 | N61: 1 | O61: 1 | P61: 0 - 30 | Q61: 1 | R61: 1 | S61: ingen | T61: 1 | U61: 1 | V61: simpel | W61: 1 | X61: 1
C62: 2 | D62: 25 - 50 | E62: 1 | F62: 1 | G62: 100 | H62: 1 | I62: 1 | J62: By | K62: 1 | L62: 1 | M62: 100.000 - 250.000 | N62: 1 | O62: 1 | P62: 30 - 60 | Q62: 1 | R62: 1 | S62: moderat | T62: 1,1 | U62: 1 | V62: moderat | W62: 1 | X62: 1
C63: 3 | D63: 50 - 100 | E63: 1 | F63: 1 | G63: 110 | H63: 1,1 | I63: 1 | J63: City | K63: 1 | L63: 1 | M63: 250.000 - 500.000 | N63: 1 | O63: 1 | P63: > 60 | Q63: 1 | R63: 1 | S63: vanskelig | T63: 1,2 | U63: 1 | V63: vanskelig | W63: 1 | X63: 1
C64: 4 | D64: > 100 | E64: 1 | F64: 1 | G64: 115 | H64: 1,15 | I64: 1 | J64: Indre city | K64: 1 | L64: 1 | M64: 500.000 - 1 mio | N64: 1 | O64: 1 | S64: meget vanskelig | T64: 1,5 | U64: 1 | V64: meget vanskelig | W64: 1 | X64: 1
C65: 5 | M65: > 1 mio | N65: 1 | O65: 1
C66: 6
C67: 7
C68: 8
C69: 9
C70: 10
B71: Boringsudvikling | C71: 1 | D71: 0 - 25 | E71: 0,8 | F71: 1 | G71: 95 | H71: 0,95 | I71: 1 | J71: Land | K71: 1 | L71: 1 | M71: 0 - 100.000 | N71: 1 | O71: 1 | P71: 0 - 30 | Q71: 1 | R71: 1 | S71: ingen | T71: 1 | U71: 1 | V71: simpel | W71: 1 | X71: 1
C72: 2 | D72: 25 - 50 | E72: 1 | F72: 1 | G72: 100 | H72: 1 | I72: 1 | J72: By | K72: 1 | L72: 1 | M72: 100.000 - 250.000 | N72: 1 | O72: 1 | P72: 30 - 60 | Q72: 1 | R72: 1 | S72: moderat | T72: 1 | U72: 1 | V72: moderat | W72: 1 | X72: 1
C73: 3 | D73: 50 - 100 | E73: 1,2 | F73: 1 | G73: 110 | H73: 1,1 | I73: 1 | J73: City | K73: 1 | L73: 1 | M73: 250.000 - 500.000 | N73: 1 | O73: 1 | P73: > 60 | Q73: 1 | R73: 1 | S73: vanskelig | T73: 1 | U73: 1 | V73: vanskelig | W73: 1 | X73: 1
C74: 4 | D74: > 100 | E74: 1,5 | F74: 1 | G74: 115 | H74: 1,15 | I74: 1 | J74: Indre city | K74: 1 | L74: 1 | M74: 500.000 - 1 mio | N74: 1 | O74: 1 | S74: meget vanskelig | T74: 1 | U74: 1 | V74: meget vanskelig | W74: 1 | X74: 1
C75: 5 | M75: > 1 mio | N75: 1 | O75: 1
C76: 6
C77: 7
C78: 8
C79: 9
C80: 10
B81: Boringsudvikling/renovering | C81: 1 | D81: 0 - 25 | E81: 0,8 | F81: 1 | G81: 95 | H81: 0,95 | I81: 1 | J81: Land | K81: 1 | L81: 1 | M81: 0 - 100.000 | N81: 1 | O81: 1 | P81: 0 - 30 | Q81: 1 | R81: 1 | S81: ingen | T81: 1 | U81: 1 | V81: simpel | W81: 1 | X81: 1
C82: 2 | D82: 25 - 50 | E82: 1 | F82: 1 | G82: 100 | H82: 1 | I82: 1 | J82: By | K82: 1 | L82: 1 | M82: 100.000 - 250.000 | N82: 1 | O82: 1 | P82: 30 - 60 | Q82: 1 | R82: 1 | S82: moderat | T82: 1 | U82: 1 | V82: moderat | W82: 1 | X82: 1
C83: 3 | D83: 50 - 100 | E83: 1,2 | F83: 1 | G83: 110 | H83: 1,1 | I83: 1 | J83: City | K83: 1 | L83: 1 | M83: 250.000 - 500.000 | N83: 1 | O83: 1 | P83: > 60 | Q83: 1 | R83: 1 | S83: vanskelig | T83: 1 | U83: 1 | V83: vanskelig | W83: 1 | X83: 1
C84: 4 | D84: > 100 | E84: 1,5 | F84: 1 | G84: 115 | H84: 1,15 | I84: 1 | J84: Indre city | K84: 1 | L84: 1 | M84: 500.000 - 1 mio | N84: 1 | O84: 1 | S84: meget vanskelig | T84: 1 | U84: 1 | V84: meget vanskelig | W84: 1 | X84: 1
C85: 5 | M85: > 1 mio | N85: 1 | O85: 1
C86: 6
C87: 7
C88: 8
C89: 9
C90: 10
B91: Pumper | C91: 1 | D91: 0 - 25 | E91: 1 | F91: 1 | G91: 95 | H91: 0,95 | I91: 1 | J91: Land | K91: 1 | L91: 1 | M91: 0 - 100.000 | N91: 1 | O91: 1 | P91: 0 - 30 | Q91: 0,8 | R91: 0,55 | S91: ingen | T91: 1 | U91: 1 | V91: simpel | W91: 1 | X91: 1
C92: 2 | D92: 25 - 50 | E92: 1 | F92: 1 | G92: 100 | H92: 1 | I92: 1 | J92: By | K92: 1 | L92: 1 | M92: 100.000 - 250.000 | N92: 1 | O92: 2 | P92: 30 - 60 | Q92: 1 | R92: 1 | S92: moderat | T92: 1 | U92: 1 | V92: moderat | W92: 1 | X92: 1
C93: 3 | D93: 50 - 100 | E93: 1 | F93: 1 | G93: 110 | H93: 1,1 | I93: 1 | J93: City | K93: 1 | L93: 1 | M93: 250.000 - 500.000 | N93: 1 | O93: 4 | P93: > 60 | Q93: 1,35 | R93: 1,95 | S93: vanskelig | T93: 1 | U93: 1 | V93: vanskelig | W93: 1 | X93: 1
C94: 4 | D94: > 100 | E94: 1 | F94: 1 | G94: 115 | H94: 1,15 | I94: 1 | J94: Indre city | K94: 1 | L94: 1 | M94: 500.000 - 1 mio | N94: 1 | O94: 8 | S94: meget vanskelig | T94: 1 | U94: 1 | V94: meget vanskelig | W94: 1 | X94: 1
C95: 5 | M95: > 1 mio | N95: 1 | O95: 12
C96: 6
C97: 7
C98: 8
C99: 9
C100: 10
B101: Stigrør | C101: 1 | D101: 0 - 25 | E101: 1 | F101: 1 | G101: 95 | H101: 0,95 | I101: 1 | J101: Land | K101: 1 | L101: 1 | M101: 0 - 100.000 | N101: 1 | O101: 1 | P101: 0 - 30 | Q101: 1 | R101: 1 | S101: ingen | T101: 1 | U101: 1 | V101: simpel | W101: 1 | X101: 1
C102: 2 | D102: 25 - 50 | E102: 1 | F102: 1 | G102: 100 | H102: 1 | I102: 1 | J102: By | K102: 1 | L102: 1 | M102: 100.000 - 250.000 | N102: 1 | O102: 1 | P102: 30 - 60 | Q102: 1 | R102: 1 | S102: moderat | T102: 1 | U102: 1 | V102: moderat | W102: 1 | X102: 1
C103: 3 | D103: 50 - 100 | E103: 1 | F103: 1 | G103: 110 | H103: 1,1 | I103: 1 | J103: City | K103: 1 | L103: 1 | M103: 250.000 - 500.000 | N103: 1 | O103: 1 | P103: > 60 | Q103: 1 | R103: 1 | S103: vanskelig | T103: 1 | U103: 1 | V103: vanskelig | W103: 1 | X103: 1
C104: 4 | D104: > 100 | E104: 1 | F104: 1 | G104: 115 | H104: 1,15 | I104: 1 | J104: Indre city | K104: 1 | L104: 1 | M104: 500.000 - 1 mio | N104: 1 | O104: 1 | S104: meget vanskelig | T104: 1 | U104: 1 | V104: meget vanskelig | W104: 1 | X104: 1
C105: 5 | M105: > 1 mio | N105: 1 | O105: 1
C106: 6
C107: 7
C108: 8
C109: 9
C110: 10
B111: VLT-styring af dykpumpe | C111: 1 | D111: 0 - 25 | E111: 1 | F111: 1 | G111: 95 | H111: 1 | I111: 1 | J111: Land | K111: 1 | L111: 1 | M111: 0 - 100.000 | N111: 1 | O111: 1 | P111: 0 - 30 | Q111: 1 | R111: 1 | S111: ingen | T111: 1 | U111: 1 | V111: simpel | W111: 1 | X111: 1
C112: 2 | D112: 25 - 50 | E112: 1 | F112: 1 | G112: 100 | H112: 1 | I112: 1 | J112: By | K112: 1 | L112: 1 | M112: 100.000 - 250.000 | N112: 1 | O112: 1 | P112: 30 - 60 | Q112: 1 | R112: 1 | S112: moderat | T112: 1 | U112: 1 | V112: moderat | W112: 1 | X112: 1
C113: 3 | D113: 50 - 100 | E113: 1 | F113: 1 | G113: 110 | H113: 1 | I113: 1 | J113: City | K113: 1 | L113: 1 | M113: 250.000 - 500.000 | N113: 1 | O113: 1 | P113: > 60 | Q113: 1 | R113: 1 | S113: vanskelig | T113: 1 | U113: 1 | V113: vanskelig | W113: 1 | X113: 1
C114: 4 | D114: > 100 | E114: 1 | F114: 1 | G114: 115 | H114: 1 | I114: 1 | J114: Indre city | K114: 1 | L114: 1 | M114: 500.000 - 1 mio | N114: 1 | O114: 1 | S114: meget vanskelig | T114: 1 | U114: 1 | V114: meget vanskelig | W114: 1 | X114: 1
C115: 5 | M115: > 1 mio | N115: 1 | O115: 1
C116: 6
C117: 7
C118: 8
C119: 9
C120: 10
B121: Målere og transmittere | C121: 1 | D121: 0 - 25 | E121: 1 | F121: 1 | G121: 95 | H121: 1 | I121: 1 | J121: Land | K121: 1 | L121: 1 | M121: 0 - 100.000 | N121: 1 | O121: 1 | P121: 0 - 30 | Q121: 1 | R121: 1 | S121: ingen | T121: 1 | U121: 1 | V121: simpel | W121: 1 | X121: 1
C122: 2 | D122: 25 - 50 | E122: 1 | F122: 1 | G122: 100 | H122: 1 | I122: 1 | J122: By | K122: 1 | L122: 1 | M122: 100.000 - 250.000 | N122: 1 | O122: 1 | P122: 30 - 60 | Q122: 1 | R122: 1 | S122: moderat | T122: 1 | U122: 1 | V122: moderat | W122: 1 | X122: 1
C123: 3 | D123: 50 - 100 | E123: 1 | F123: 1 | G123: 110 | H123: 1 | I123: 1 | J123: City | K123: 1 | L123: 1 | M123: 250.000 - 500.000 | N123: 1 | O123: 1 | P123: > 60 | Q123: 1 | R123: 1 | S123: vanskelig | T123: 1 | U123: 1 | V123: vanskelig | W123: 1 | X123: 1
C124: 4 | D124: > 100 | E124: 1 | F124: 1 | G124: 115 | H124: 1 | I124: 1 | J124: Indre city | K124: 1 | L124: 1 | M124: 500.000 - 1 mio | N124: 1 | O124: 1 | S124: meget vanskelig | T124: 1 | U124: 1 | V124: meget vanskelig | W124: 1 | X124: 1
C125: 5 | M125: > 1 mio | N125: 1 | O125: 1
C126: 6
C127: 7
C128: 8
C129: 9
C130: 10
B131: Råvandsstation | C131: 1 | D131: 0 - 25 | E131: 1 | F131: 1 | G131: 95 | H131: 0,95 | I131: 1 | J131: Land | K131: 1 | L131: 1 | M131: 0 - 100.000 | N131: 1 | O131: 1 | P131: 0 - 30 | Q131: 1 | R131: 1 | S131: ingen | T131: 1 | U131: 1 | V131: simpel | W131: 1 | X131: 1
C132: 2 | D132: 25 - 50 | E132: 1 | F132: 1 | G132: 100 | H132: 1 | I132: 1 | J132: By | K132: 1 | L132: 1 | M132: 100.000 - 250.000 | N132: 1 | O132: 1 | P132: 30 - 60 | Q132: 1 | R132: 1 | S132: moderat | T132: 1 | U132: 1 | V132: moderat | W132: 1 | X132: 1
C133: 3 | D133: 50 - 100 | E133: 1 | F133: 1 | G133: 110 | H133: 1,1 | I133: 1 | J133: City | K133: 1 | L133: 1 | M133: 250.000 - 500.000 | N133: 1 | O133: 1 | P133: > 60 | Q133: 1 | R133: 1 | S133: vanskelig | T133: 1 | U133: 1 | V133: vanskelig | W133: 1 | X133: 1
C134: 4 | D134: > 100 | E134: 1 | F134: 1 | G134: 115 | H134: 1,15 | I134: 1 | J134: Indre city | K134: 1 | L134: 1 | M134: 500.000 - 1 mio | N134: 1 | O134: 1 | S134: meget vanskelig | T134: 1 | U134: 1 | V134: meget vanskelig | W134: 1 | X134: 1
C135: 5 | M135: > 1 mio | N135: 1 | O135: 1
C136: 6
C137: 7
C138: 8
C139: 9
C140: 10
B141: Indhegning | C141: 1 | D141: 0 - 25 | E141: 1 | F141: 1 | G141: 95 | H141: 0,95 | I141: 1 | J141: Land | K141: 1 | L141: 1 | M141: 0 - 100.000 | N141: 1 | O141: 1 | P141: 0 - 30 | Q141: 1 | R141: 1 | S141: ingen | T141: 1 | U141: 1 | V141: simpel | W141: 1 | X141: 1
C142: 2 | D142: 25 - 50 | E142: 1 | F142: 1 | G142: 100 | H142: 1 | I142: 1 | J142: By | K142: 1 | L142: 1 | M142: 100.000 - 250.000 | N142: 1 | O142: 1 | P142: 30 - 60 | Q142: 1 | R142: 1 | S142: moderat | T142: 1 | U142: 1 | V142: moderat | W142: 1 | X142: 1
C143: 3 | D143: 50 - 100 | E143: 1 | F143: 1 | G143: 110 | H143: 1,1 | I143: 1 | J143: City | K143: 1 | L143: 1 | M143: 250.000 - 500.000 | N143: 1 | O143: 1 | P143: > 60 | Q143: 1 | R143: 1 | S143: vanskelig | T143: 1 | U143: 1 | V143: vanskelig | W143: 1 | X143: 1
C144: 4 | D144: > 100 | E144: 1 | F144: 1 | G144: 115 | H144: 1,15 | I144: 1 | J144: Indre city | K144: 1 | L144: 1 | M144: 500.000 - 1 mio | N144: 1 | O144: 1 | S144: meget vanskelig | T144: 1 | U144: 1 | V144: meget vanskelig | W144: 1 | X144: 1
C145: 5 | M145: > 1 mio | N145: 1 | O145: 1
C146: 6
C147: 7
C148: 8
C149: 9
C150: 10
B151: Råvandsledning | C151: 1 | D151: 0 - 25 | E151: 1 | F151: 1 | G151: 95 | H151: 0,95 | I151: 1 | J151: Land | K151: 0,9 | L151: 1 | M151: 0 - 100.000 | N151: 1 | O151: 1 | P151: 0 - 30 | Q151: 1 | R151: 1 | S151: ingen | T151: 0,9 | U151: 1 | V151: simpel | W151: 1 | X151: 1
C152: 2 | D152: 25 - 50 | E152: 1 | F152: 1 | G152: 100 | H152: 1 | I152: 1 | J152: By | K152: 1 | L152: 1 | M152: 100.000 - 250.000 | N152: 1 | O152: 1 | P152: 30 - 60 | Q152: 1 | R152: 1 | S152: moderat | T152: 1 | U152: 1 | V152: moderat | W152: 1 | X152: 1
C153: 3 | D153: 50 - 100 | E153: 1 | F153: 1 | G153: 110 | H153: 1,1 | I153: 1 | J153: City | K153: 1,4 | L153: 1 | M153: 250.000 - 500.000 | N153: 1 | O153: 1 | P153: > 60 | Q153: 1 | R153: 1 | S153: vanskelig | T153: 1,4 | U153: 1 | V153: vanskelig | W153: 1 | X153: 1
C154: 4 | D154: > 100 | E154: 1 | F154: 1 | G154: 115 | H154: 1,15 | I154: 1 | J154: Indre city | K154: 2,1 | L154: 1 | M154: 500.000 - 1 mio | N154: 1 | O154: 1 | S154: meget vanskelig | T154: 2,1 | U154: 1 | V154: meget vanskelig | W154: 1 | X154: 1
C155: 5 | M155: > 1 mio | N155: 1 | O155: 1
C156: 6
C157: 7
C158: 8
C159: 9
C160: 10
B161: Sløjfning | C161: 1 | D161: 0 - 25 | E161: 1 | F161: 1 | G161: 95 | H161: 0,95 | I161: 1 | J161: Land | K161: 1 | L161: 1 | M161: 0 - 100.000 | N161: 1 | O161: 1 | P161: 0 - 30 | Q161: 1 | R161: 1 | S161: ingen | T161: 1 | U161: 1 | V161: simpel | W161: 1 | X161: 1
C162: 2 | D162: 25 - 50 | E162: 1 | F162: 1 | G162: 100 | H162: 1 | I162: 1 | J162: By | K162: 1 | L162: 1 | M162: 100.000 - 250.000 | N162: 1 | O162: 1 | P162: 30 - 60 | Q162: 1 | R162: 1 | S162: moderat | T162: 1,1 | U162: 1 | V162: moderat | W162: 1 | X162: 1
C163: 3 | D163: 50 - 100 | E163: 1 | F163: 1 | G163: 110 | H163: 1,1 | I163: 1 | J163: City | K163: 1 | L163: 1 | M163: 250.000 - 500.000 | N163: 1 | O163: 1 | P163: > 60 | Q163: 1 | R163: 1 | S163: vanskelig | T163: 1,5 | U163: 1 | V163: vanskelig | W163: 1 | X163: 1
C164: 4 | D164: > 100 | E164: 1 | F164: 1 | G164: 115 | H164: 1,15 | I164: 1 | J164: Indre city | K164: 1 | L164: 1 | M164: 500.000 - 1 mio | N164: 1 | O164: 1 | S164: meget vanskelig | T164: 3 | U164: 1 | V164: meget vanskelig | W164: 1 | X164: 1
C165: 5 | M165: > 1 mio | N165: 1 | O165: 1
C166: 6
C167: 7
C168: 8
C169: 9
C170: 10
A171: Vandværk | B171: Beluftning | C171: 1 | D171: 0 - 25 | E171: 1,15 | F171: 1 | G171: 95 | H171: 0,95 | I171: 1 | J171: Land | K171: 1 | L171: 1 | M171: 0 - 100.000 | N171: 1 | O171: 1,2 | P171: 0 - 30 | Q171: 1 | R171: 1 | S171: ingen | T171: 1 | U171: 1 | V171: simpel | W171: 0,9 | X171: 0,9
C172: 2 | D172: 25 - 50 | E172: 1 | F172: 1 | G172: 100 | H172: 1 | I172: 1 | J172: By | K172: 1 | L172: 1 | M172: 100.000 - 250.000 | N172: 1 | O172: 1,1 | P172: 30 - 60 | Q172: 1 | R172: 1 | S172: moderat | T172: 1 | U172: 1 | V172: moderat | W172: 1 | X172: 1
C173: 3 | D173: 50 - 100 | E173: 0,95 | F173: 1 | G173: 110 | H173: 1,1 | I173: 1 | J173: City | K173: 1 | L173: 1 | M173: 250.000 - 500.000 | N173: 1 | O173: 1 | P173: > 60 | Q173: 1 | R173: 1 | S173: vanskelig | T173: 1 | U173: 1 | V173: vanskelig | W173: 1,15 | X173: 1,2
C174: 4 | D174: > 100 | E174: 0,8 | F174: 1 | G174: 115 | H174: 1,15 | I174: 1 | J174: Indre city | K174: 1 | L174: 1 | M174: 500.000 - 1 mio | N174: 1 | O174: 0,92 | S174: meget vanskelig | T174: 1 | U174: 1 | V174: meget vanskelig | W174: 1,3 | X174: 1,5
C175: 5 | M175: > 1 mio | N175: 1 | O175: 0,9
C176: 6
C177: 7
C178: 8
C179: 9
C180: 10
B181: Filtrering | C181: 1 | D181: 0 - 25 | E181: 1,25 | F181: 1 | G181: 95 | H181: 0,95 | I181: 1 | J181: Land | K181: 1 | L181: 1 | M181: 0 - 100.000 | N181: 1 | O181: 1,1 | P181: 0 - 30 | Q181: 1 | R181: 1 | S181: ingen | T181: 1 | U181: 1 | V181: simpel | W181: 0,9 | X181: 0,9
C182: 2 | D182: 25 - 50 | E182: 1 | F182: 1 | G182: 100 | H182: 1 | I182: 1 | J182: By | K182: 1 | L182: 1 | M182: 100.000 - 250.000 | N182: 1 | O182: 1,05 | P182: 30 - 60 | Q182: 1 | R182: 1 | S182: moderat | T182: 1 | U182: 1 | V182: moderat | W182: 1 | X182: 1
C183: 3 | D183: 50 - 100 | E183: 0,9 | F183: 1 | G183: 110 | H183: 1,1 | I183: 1 | J183: City | K183: 1 | L183: 1 | M183: 250.000 - 500.000 | N183: 1 | O183: 1 | P183: > 60 | Q183: 1 | R183: 1 | S183: vanskelig | T183: 1 | U183: 1 | V183: vanskelig | W183: 1,2 | X183: 1,2
C184: 4 | D184: > 100 | E184: 0,85 | F184: 1 | G184: 115 | H184: 1,15 | I184: 1 | J184: Indre city | K184: 1 | L184: 1 | M184: 500.000 - 1 mio | N184: 1 | O184: 0,97 | S184: meget vanskelig | T184: 1 | U184: 1 | V184: meget vanskelig | W184: 1,4 | X184: 1,4
C185: 5 | M185: > 1 mio | N185: 1 | O185: 0,95
C186: 6
C187: 7
C188: 8
C189: 9
C190: 10
B191: Skylleanlæg | C191: 1 | D191: 0 - 25 | E191: 1,15 | F191: 1,15 | G191: 95 | H191: 0,95 | I191: 1 | J191: Land | K191: 1 | L191: 1 | M191: 0 - 100.000 | N191: 1 | O191: 1,2 | P191: 0 - 30 | Q191: 1 | R191: 1 | S191: ingen | T191: 1 | U191: 1 | V191: simpel | W191: 0,8 | X191: 0,8
C192: 2 | D192: 25 - 50 | E192: 1 | F192: 1 | G192: 100 | H192: 1 | I192: 1 | J192: By | K192: 1 | L192: 1 | M192: 100.000 - 250.000 | N192: 1 | O192: 1 | P192: 30 - 60 | Q192: 1 | R192: 1 | S192: moderat | T192: 1 | U192: 1 | V192: moderat | W192: 1 | X192: 1
C193: 3 | D193: 50 - 100 | E193: 0,95 | F193: 0,95 | G193: 110 | H193: 1,1 | I193: 1 | J193: City | K193: 1 | L193: 1 | M193: 250.000 - 500.000 | N193: 1 | O193: 0,95 | P193: > 60 | Q193: 1 | R193: 1 | S193: vanskelig | T193: 1 | U193: 1 | V193: vanskelig | W193: 1,1 | X193: 1,1
C194: 4 | D194: > 100 | E194: 0,8 | F194: 0,8 | G194: 115 | H194: 1,15 | I194: 1 | J194: Indre city | K194: 1 | L194: 1 | M194: 500.000 - 1 mio | N194: 1 | O194: 0,9 | S194: meget vanskelig | T194: 1 | U194: 1 | V194: meget vanskelig | W194: 1,2 | X194: 1,2
C195: 5 | M195: > 1 mio | N195: 1 | O195: 0,85
C196: 6
C197: 7
C198: 8
C199: 9
C200: 10
B201: Rentvandsbeholder | C201: 1 | D201: 0 - 25 | E201: 1,3 | F201: 1,05 | G201: 95 | H201: 0,95 | I201: 1 | J201: Land | K201: 1 | L201: 1 | M201: 0 - 100.000 | N201: 1,2 | O201: 1 | P201: 0 - 30 | Q201: 1 | R201: 1 | S201: ingen | T201: 1 | U201: 1 | V201: simpel | W201: 1 | X201: 1
C202: 2 | D202: 25 - 50 | E202: 1 | F202: 1 | G202: 100 | H202: 1 | I202: 1 | J202: By | K202: 1 | L202: 1 | M202: 100.000 - 250.000 | N202: 1 | O202: 1 | P202: 30 - 60 | Q202: 1 | R202: 1 | S202: moderat | T202: 1 | U202: 1 | V202: moderat | W202: 1 | X202: 1
C203: 3 | D203: 50 - 100 | E203: 0,9 | F203: 0,98 | G203: 110 | H203: 1,1 | I203: 1 | J203: City | K203: 1 | L203: 1 | M203: 250.000 - 500.000 | N203: 0,9 | O203: 1 | P203: > 60 | Q203: 1 | R203: 1 | S203: vanskelig | T203: 1 | U203: 1 | V203: vanskelig | W203: 1 | X203: 1
C204: 4 | D204: > 100 | E204: 0,8 | F204: 0,95 | G204: 115 | H204: 1,15 | I204: 1 | J204: Indre city | K204: 1 | L204: 1 | M204: 500.000 - 1 mio | N204: 0,85 | O204: 1 | S204: meget vanskelig | T204: 1 | U204: 1 | V204: meget vanskelig | W204: 1 | X204: 1
C205: 5 | M205: > 1 mio | N205: 0,8 | O205: 1
C206: 6
... 244 more rows

Sheet SETUP
A3: KILDE
A5: Prishåndbogen
A6: Polka
A7: Molio
A8: Erfaringstal

Sheet Sheet1 (hidden)
C5: tPFmatrice
D6: HF(1 to 3) as tHFmatrix
D7: RBs() as string
E9: tHFmatrix
F10: Hfnavn as string
F11: Tgrække() as tTGrække
G13: tTGrække
H14: RB() as tFaktorGrp
H15: Tgnavn as string
I17: tFaktorGrp
J18: FaktorIndex() as string
J19: Rbnavn as string
J20: Tgnavn as string

Sheet FAQ_TL (hidden)
A1: Vejledning til Teknologi-ark
B3: Teknologier og Teknologi-grupper
B4: Teknologier knyttes til en hovedfunktion (HF)og inddeles i teknologi-grupper (TG)
B5: TG'erne opstilles i en rækkefølge, som er fornuftig (der kan evt. tildeles en sorterings-kode, som gør, at der kan sorteres uden at anvende gruppens navn til dette)
B6: Hver teknologi tilskrives en levetid (år) og et teknologi-niveau (STD/BAT/STOA).
B7: Alle teknologier i en TG kan prismæssigt skaleres ens.
B8: Hvis der er teknologier i en gruppe, som IKKE kan skaleres som resten, skal der oprettes en ny TG
B10: Prissætning
B11: Alle teknologier tildeles basispriser for anlæg (kr), drift (kr/år) og vedligehold (kr/år), samt enheden for prisen (f.eks. lbm, stk, o.l.)
B12: De faktiske anlægs- og drifts-priser for en teknologi påvirkes af faktorer, som fastsættes på teknologigruppeniveau. Vedligeholdsprisen påvirkes af samme faktor som anlægsprisen.
B13: Kilden til de angivne basis- og driftspriser angives (f.eks. prishåndbog, erfaringspris, e.l.)
B14: Afskrivning beregnes automatisk og angives i output (kr/år) og skal ikke angives (Afskrivningspris = Faktisk anlægspris / Levetid)
B16: Min- og maks-anvendelse
B17: Min- og maks-anvendelse knytter sig til den enkelte teknologi, og er en mulighed for at kunne fravælge en teknologi, som ikke giver mening at anvende pga. en RB.
B18: Min- og maks anvendes derfor IKKE til at skalere priser, men udelukkende til at fra-vælge specifikke teknologier ved specifikke RB'er.
B19: Min- og maks-intervaller knytter sig til de mulige valg, som for en RB er defineret i RB-arket.
B20: Min/max sættes kun, hvis det ønskes at fravælge en teknologi ved bestemte RB'er.
B21: Der SKAL vælges BÅDE en min- eller max-værdi - hvis ikke bliver den enlige værdi rød
B22: Min-værdi skal stå højere (eller på samme niveau) som max-værdi - ellers bliver værdierne røde
B23: Hvis der er angivet en værdi for en min/max, som ikke findes på listen, bliver værdien rød
B24: Hvis en/flere af teknologierne indenfor en RB har fejl i min/max, bliver RB-headeren farvet rød
C26: Her bliver værdien rød, fordi der ikke er angivet en max-værdi: | L26: Her bliver værdien rød, fordi den ikke findes på listen:
C31: Her bliver værdierne røde, fordi min-værdien står længere nede på listen end max-værdien:

Sheet LHT-noter (hidden)
A4: Finn lægger op til at en teknologisk basispris udregnes på baggrund af bl.a. "makstime"! Denne metode dur ikke, da MAKSTIME er en rammebetingelse - med sine valgmuligheder (0 - 30, 30 - 60, 60 - 90 m3/time) med hver sine faktorer.
A12: Hver teknologi tilknyttes en teknologi-gruppe, som igen tilknyttes en hovedfunktion
A13: Hver teknologi tildeles en basis-pris, som udgør en "typisk" anlægs-pris for teknologien. Er det f.eks. et filter, kan basisprisen derfor være prisen ved/omkring en minimums-indvinding (30m3/t), mens prisen for en større indvinding reguleres vha. faktorerne vedr. TIMEMAKS og/eller DØGNMAKS
A14: Prisen for en teknologi fastsættes ved valg af forhold (parametre) vedrørende defienrede rammebetingelser. Parametrene tilknyttes hver især en faktor, som anvendes til at påvirke teknologiens pris (ud fra basisprisen).
A15: Hver teknologi tilknyttes et teknologi-niveau (STD/BAT/STOA), som ikke påvirker prisen, men kun er en egenskab for teknologien
A17: For hver rammebetingelse opstilles 1-10 (måske kun 5) forskellige valg (tilknyttet hver sin faktor) for hver teknologi-gruppe. Valgene vil igennem deres tilknyttede faktor påvirke teknologiens anlægspris ved det givne (valgte) forhold vedr. rammebetingelsen. Hvis det vurderes, at en teknologi-gruppe ikke påvirkes af en bestemt rammebetingelse, angives der kun 1 valgmulighed (Uden Betydning), som tildeles en faktor=1 Hvis det vurderes, at rammebetingelsen har indflydelse på prisen for teknologien, defineres der et antal mulige valg - hver med sin faktor. Der angives altid valget "Uden Betydning" med faktor=1, således at det kan vælges at holde rammebetingelsen udenfor indflydelse.
A20: Det foreslås at levere data som indikeret i OUTPUT-ark
A21: At levere den fulde matrice af alle valg indenfor alle rammebetingelser for alle teknologier vil ikke være en mulighed. Med 15 rammebetingelser, hver med 5 valg (parametre) vil give output på 5^15 = flere end 30 mia linier pr teknologi
C22: =5^15 -> 30517578125

Sheet OUTPUT-OLD (hidden)
A1: Hovedfunktion | B1: Teknologi-gruppe | C1: Teknologi | D1: TekNiveau | E1: RB_Nr | F1: RB_tekst | G1: RB_valg | H1: ANL_pris | I1: DRI_pris | J1: VLH_pris
A2: Kildeplads | B2: Pumpe | C2: SP4 | D2: STD | E2: 1 | F2: Årlig produktion | G2: Uden Betydning | H2: 20000 | I2: 5000 | J2: 2000
A3: Kildeplads | B3: Pumpe | C3: SP4 | D3: STD | E3: 1 | F3: Årlig produktion | G3: 0 - 10 | H3: 20000 | I3: 5000 | J3: 2000
A4: Kildeplads | B4: Pumpe | C4: SP4 | D4: STD | E4: 1 | F4: Årlig produktion | G4: 10 - 25 | H4: =20000*1.1 -> 22000 | I4: 5000 | J4: 2000
A5: Kildeplads | B5: Pumpe | C5: SP4 | D5: STD | E5: 1 | F5: Årlig produktion | G5: 25 - 50 | H5: =20000*1.2 -> 24000 | I5: =5000*1.1 -> 5500 | J5: =2000*1.1 -> 2200
A6: Kildeplads | B6: Pumpe | C6: SP4 | D6: STD | E6: 1 | F6: Årlig produktion | G6: 50 - 250 | H6: =20000*1.3 -> 26000 | I6: =5000*1.2 -> 6000 | J6: =2000*1.2 -> 2400
A7: Kildeplads | B7: Pumpe | C7: SP4 | D7: STD | E7: 1 | F7: Årlig produktion | G7: 250 - 1000 | H7: =20000*1.4 -> 28000 | I7: =5000*1.2 -> 6000 | J7: =2000*1.2 -> 2400
A8: Kildeplads | B8: Pumpe | C8: SP4 | D8: STD | E8: 1 | F8: Årlig produktion | G8: >1000 | H8: =20000*1.6 -> 32000 | I8: =5000*1.3 -> 6500 | J8: 2400
A9: Kildeplads | B9: Pumpe | C9: SP4 | D9: STD | E9: 2 | F9: Maksdøgn | G9: Uden Betydning
A10: Kildeplads | B10: Pumpe | C10: SP4 | D10: STD | E10: 2 | F10: Maksdøgn | G10: valg 1
A11: Kildeplads | B11: Pumpe | C11: SP4 | D11: STD | E11: 2 | F11: Maksdøgn | G11: valg 2
A12: Kildeplads | B12: Pumpe | C12: SP4 | D12: STD | E12: 2 | F12: Maksdøgn | G12: valg 2
A13: Kildeplads | B13: Pumpe | C13: SP4 | D13: STD | E13: 3 | F13: Makstime | G13: Uden Betydning
A14: Kildeplads | B14: Pumpe | C14: SP4 | D14: STD | E14: 3 | F14: Makstime | G14: valg 1
A15: Kildeplads | B15: Pumpe | C15: SP4 | D15: STD | E15: 3 | F15: Makstime | G15: valg 2
A16: Kildeplads | B16: Pumpe | C16: SP4 | D16: STD | E16: 3 | F16: Makstime | G16: valg 3
A17: Kildeplads | B17: Pumpe | C17: SP4 | D17: STD | E17: 3 | F17: Makstime | G17: valg 4
B18: - - -
A19: Kildeplads | B19: Pumpe | C19: SP10 | D19: STOA
G27: =1100000/5^5 -> 352 | H27: =18*5^5 -> 56250

Sheet OUTPUT (hidden)
A1: 1 | B1: 2 | C1: 3 | D1: 4 | E1: 5 | F1: 6 | G1: 7 | H1: 8 | I1: 9 | J1: 10 | K1: 11 | L1: 12 | M1: 13 | N1: 14 | O1: 15 | P1: 16 | Q1: 17 | R1: 18
A2: Hovedfunktion | B2: Teknologi-gruppe | C2: Teknologi | D2: TekNiveau | E2: Levetid | F2: BASIS_pris | G2: KILDE_anlæg | H2: Kilde_levTid | I2: ANLÆG_pris | J2: REL | K2: BEMÆRK | L2: AFSKR_pris | M2: Driftspris | N2: VLH_pris | O2: Enhed | P2: RB1_Makstime (m3) | Q2: RB2_Geografisk placering | R2: RB3_Lokalitet (land/by) | T2: RB1 | U2: RB2 | V2: RB3
A3: Kildeplads | B3: Boringsudførelse | C3: Tørboring_Ø250mm_0-30m | D3: STD | F3: 1257 | I3: =IFERROR(T3*U3*V3*F3,"IR") -> IR | O3: lbm | P3: 0 - 25 | Q3: København | R3: Land | T3: 1 | U3: =VLOOKUP(Q3,PrisFaktorer!$G$11:$H$14,2,FALSE) ->  | V3: IR
A4: Kildeplads | B4: Boringsudførelse | C4: Tørboring_Ø250mm_0-30m | D4: STD | F4: 1257 | I4: =IFERROR(T4*U4*V4*F4,"IR") -> IR | O4: lbm | P4: 0 - 25 | Q4: København | R4: By | T4: 1 | U4: =VLOOKUP(Q4,PrisFaktorer!$G$11:$H$14,2,FALSE) ->  | V4: 1.2
A5: Kildeplads | B5: Boringsudførelse | C5: Tørboring_Ø250mm_0-30m | D5: STD | F5: 1257 | I5: IR | O5: lbm | P5: 0 - 25 | Q5: København | R5: Centrum | T5: 1 | U5: =VLOOKUP(Q5,PrisFaktorer!$G$11:$H$14,2,FALSE) ->  | V5: 1.5
A6: Kildeplads | B6: Boringsudførelse | C6: Tørboring_Ø250mm_0-30m | D6: STD | F6: 1257 | I6: IR | O6: lbm | P6: 0 - 25 | Q6: Sjælland | R6: Land | T6: 1 | U6: =VLOOKUP(Q6,PrisFaktorer!$G$11:$H$14,2,FALSE) ->  | V6: 1
A7: Kildeplads | B7: Boringsudførelse | C7: Tørboring_Ø250mm_0-30m | D7: STD | F7: 1257 | I7: IR | O7: lbm | P7: 0 - 25 | Q7: Sjælland | R7: By | T7: 1 | U7: =VLOOKUP(Q7,PrisFaktorer!$G$11:$H$14,2,FALSE) ->  | V7: 1.2
A8: Kildeplads | B8: Boringsudførelse | C8: Tørboring_Ø250mm_0-30m | D8: STD | F8: 1257 | I8: IR | O8: lbm | P8: 0 - 25 | Q8: Sjælland | R8: Centrum | T8: 1 | U8: =VLOOKUP(Q8,PrisFaktorer!$G$11:$H$14,2,FALSE) ->  | V8: 1.5
A9: Kildeplads | B9: Boringsudførelse | C9: Tørboring_Ø250mm_0-30m | D9: STD | F9: 1257 | I9: IR | O9: lbm | P9: 0 - 25 | Q9: Øerne | R9: Land | T9: 1 | U9: =VLOOKUP(Q9,PrisFaktorer!$G$11:$H$14,2,FALSE) ->  | V9: 1
A10: Kildeplads | B10: Boringsudførelse | C10: Tørboring_Ø250mm_0-30m | D10: STD | F10: 1257 | I10: IR | O10: lbm | P10: 0 - 25 | Q10: Øerne | R10: By | T10: 1 | U10: =VLOOKUP(Q10,PrisFaktorer!$G$11:$H$14,2,FALSE) ->  | V10: 1.2
A11: Kildeplads | B11: Boringsudførelse | C11: Tørboring_Ø250mm_0-30m | D11: STD | F11: 1257 | I11: IR | O11: lbm | P11: 0 - 25 | Q11: Øerne | R11: Centrum | T11: 1 | U11: =VLOOKUP(Q11,PrisFaktorer!$G$11:$H$14,2,FALSE) ->  | V11: 1.5
A12: Kildeplads | B12: Boringsudførelse | C12: Tørboring_Ø250mm_0-30m | D12: STD | F12: 1257 | I12: IR | O12: lbm | P12: 0 - 25 | Q12: Jylland | R12: Land | T12: 1 | U12: =VLOOKUP(Q12,PrisFaktorer!$G$11:$H$14,2,FALSE) ->  | V12: 1
A13: Kildeplads | B13: Boringsudførelse | C13: Tørboring_Ø250mm_0-30m | D13: STD | F13: 1257 | I13: IR | O13: lbm | P13: 0 - 25 | Q13: Jylland | R13: By | T13: 1 | U13: =VLOOKUP(Q13,PrisFaktorer!$G$11:$H$14,2,FALSE) ->  | V13: 1.2
A14: Kildeplads | B14: Boringsudførelse | C14: Tørboring_Ø250mm_0-30m | D14: STD | F14: 1257 | I14: IR | O14: lbm | P14: 0 - 25 | Q14: Jylland | R14: Centrum | T14: 1 | U14: =VLOOKUP(Q14,PrisFaktorer!$G$11:$H$14,2,FALSE) ->  | V14: 1.5
A15: Kildeplads | B15: Boringsudførelse | C15: Tørboring_Ø250mm_0-30m | D15: STD | F15: 1257 | I15: IR | O15: lbm | P15: 25 - 50 | Q15: København | R15: Land | T15: IR | U15: =VLOOKUP(Q15,PrisFaktorer!$G$11:$H$14,2,FALSE) ->  | V15: IR
A16: Kildeplads | B16: Boringsudførelse | C16: Tørboring_Ø250mm_0-30m | D16: STD | F16: 1257 | I16: IR | O16: lbm | P16: 25 - 50 | Q16: København | R16: By | T16: IR | U16: =VLOOKUP(Q16,PrisFaktorer!$G$11:$H$14,2,FALSE) ->  | V16: 1.2
A17: Kildeplads | B17: Boringsudførelse | C17: Tørboring_Ø250mm_0-30m | D17: STD | F17: 1257 | I17: IR | O17: lbm | P17: 25 - 50 | Q17: København | R17: Centrum | T17: IR | U17: =VLOOKUP(Q17,PrisFaktorer!$G$11:$H$14,2,FALSE) ->  | V17: 1.5
A18: Kildeplads | B18: Boringsudførelse | C18: Tørboring_Ø250mm_0-30m | D18: STD | F18: 1257 | I18: IR | O18: lbm | P18: 25 - 50 | Q18: Sjælland | R18: Land | T18: IR | U18: =VLOOKUP(Q18,PrisFaktorer!$G$11:$H$14,2,FALSE) ->  | V18: 1
A19: Kildeplads | B19: Boringsudførelse | C19: Tørboring_Ø250mm_0-30m | D19: STD | F19: 1257 | I19: IR | O19: lbm | P19: 25 - 50 | Q19: Sjælland | R19: By | T19: IR | U19: =VLOOKUP(Q19,PrisFaktorer!$G$11:$H$14,2,FALSE) ->  | V19: 1.2
A20: Kildeplads | B20: Boringsudførelse | C20: Tørboring_Ø250mm_0-30m | D20: STD | F20: 1257 | I20: IR | O20: lbm | P20: 25 - 50 | Q20: Sjælland | R20: Centrum | T20: IR | U20: =VLOOKUP(Q20,PrisFaktorer!$G$11:$H$14,2,FALSE) ->  | V20: 1.5
A21: Kildeplads | B21: Boringsudførelse | C21: Tørboring_Ø250mm_0-30m | D21: STD | F21: 1257 | I21: IR | O21: lbm | P21: 25 - 50 | Q21: Øerne | R21: Land | T21: IR | U21: =VLOOKUP(Q21,PrisFaktorer!$G$11:$H$14,2,FALSE) ->  | V21: 1
A22: Kildeplads | B22: Boringsudførelse | C22: Tørboring_Ø250mm_0-30m | D22: STD | F22: 1257 | I22: IR | O22: lbm | P22: 25 - 50 | Q22: Øerne | R22: By | T22: IR | U22: =VLOOKUP(Q22,PrisFaktorer!$G$11:$H$14,2,FALSE) ->  | V22: 1.2
A23: Kildeplads | B23: Boringsudførelse | C23: Tørboring_Ø250mm_0-30m | D23: STD | F23: 1257 | I23: IR | O23: lbm | P23: 25 - 50 | Q23: Øerne | R23: Centrum | T23: IR | U23: =VLOOKUP(Q23,PrisFaktorer!$G$11:$H$14,2,FALSE) ->  | V23: 1.5
A24: Kildeplads | B24: Boringsudførelse | C24: Tørboring_Ø250mm_0-30m | D24: STD | F24: 1257 | I24: IR | O24: lbm | P24: 25 - 50 | Q24: Jylland | R24: Land | T24: IR | U24: =VLOOKUP(Q24,PrisFaktorer!$G$11:$H$14,2,FALSE) ->  | V24: 1
A25: Kildeplads | B25: Boringsudførelse | C25: Tørboring_Ø250mm_0-30m | D25: STD | F25: 1257 | I25: IR | O25: lbm | P25: 25 - 50 | Q25: Jylland | R25: By | T25: IR | U25: =VLOOKUP(Q25,PrisFaktorer!$G$11:$H$14,2,FALSE) ->  | V25: 1.2
A26: Kildeplads | B26: Boringsudførelse | C26: Tørboring_Ø250mm_0-30m | D26: STD | F26: 1257 | I26: IR | O26: lbm | P26: 25 - 50 | Q26: Jylland | R26: Centrum | T26: IR | U26: =VLOOKUP(Q26,PrisFaktorer!$G$11:$H$14,2,FALSE) ->  | V26: 1.5
A27: Kildeplads | B27: Boringsudførelse | C27: Tørboring_Ø250mm_0-30m | D27: STD | F27: 1257 | I27: IR | O27: lbm | P27: > 50 | Q27: København | R27: Land | T27: IR | U27: =VLOOKUP(Q27,PrisFaktorer!$G$11:$H$14,2,FALSE) ->  | V27: IR
A28: Kildeplads | B28: Boringsudførelse | C28: Tørboring_Ø250mm_0-30m | D28: STD | F28: 1257 | I28: IR | O28: lbm | P28: > 50 | Q28: København | R28: By | T28: IR | U28: =VLOOKUP(Q28,PrisFaktorer!$G$11:$H$14,2,FALSE) ->  | V28: 1.2
A29: Kildeplads | B29: Boringsudførelse | C29: Tørboring_Ø250mm_0-30m | D29: STD | F29: 1257 | I29: IR | O29: lbm | P29: > 50 | Q29: København | R29: Centrum | T29: IR | U29: =VLOOKUP(Q29,PrisFaktorer!$G$11:$H$14,2,FALSE) ->  | V29: 1.5
A30: Kildeplads | B30: Boringsudførelse | C30: Tørboring_Ø250mm_0-30m | D30: STD | F30: 1257 | I30: IR | O30: lbm | P30: > 50 | Q30: Sjælland | R30: Land | T30: IR | U30: =VLOOKUP(Q30,PrisFaktorer!$G$11:$H$14,2,FALSE) ->  | V30: 1
A31: Kildeplads | B31: Boringsudførelse | C31: Tørboring_Ø250mm_0-30m | D31: STD | F31: 1257 | I31: IR | O31: lbm | P31: > 50 | Q31: Sjælland | R31: By | T31: IR | U31: =VLOOKUP(Q31,PrisFaktorer!$G$11:$H$14,2,FALSE) ->  | V31: 1.2
A32: Kildeplads | B32: Boringsudførelse | C32: Tørboring_Ø250mm_0-30m | D32: STD | F32: 1257 | I32: IR | O32: lbm | P32: > 50 | Q32: Sjælland | R32: Centrum | T32: IR | U32: =VLOOKUP(Q32,PrisFaktorer!$G$11:$H$14,2,FALSE) ->  | V32: 1.5
A33: Kildeplads | B33: Boringsudførelse | C33: Tørboring_Ø250mm_0-30m | D33: STD | F33: 1257 | I33: IR | O33: lbm | P33: > 50 | Q33: Øerne | R33: Land | T33: IR | U33: =VLOOKUP(Q33,PrisFaktorer!$G$11:$H$14,2,FALSE) ->  | V33: 1
A34: Kildeplads | B34: Boringsudførelse | C34: Tørboring_Ø250mm_0-30m | D34: STD | F34: 1257 | I34: IR | O34: lbm | P34: > 50 | Q34: Øerne | R34: By | T34: IR | U34: =VLOOKUP(Q34,PrisFaktorer!$G$11:$H$14,2,FALSE) ->  | V34: 1.2
A35: Kildeplads | B35: Boringsudførelse | C35: Tørboring_Ø250mm_0-30m | D35: STD | F35: 1257 | I35: IR | O35: lbm | P35: > 50 | Q35: Øerne | R35: Centrum | T35: IR | U35: =VLOOKUP(Q35,PrisFaktorer!$G$11:$H$14,2,FALSE) ->  | V35: 1.5
A36: Kildeplads | B36: Boringsudførelse | C36: Tørboring_Ø250mm_0-30m | D36: STD | F36: 1257 | I36: IR | O36: lbm | P36: > 50 | Q36: Jylland | R36: Land | T36: IR | U36: =VLOOKUP(Q36,PrisFaktorer!$G$11:$H$14,2,FALSE) ->  | V36: 1
A37: Kildeplads | B37: Boringsudførelse | C37: Tørboring_Ø250mm_0-30m | D37: STD | F37: 1257 | I37: IR | O37: lbm | P37: > 50 | Q37: Jylland | R37: By | T37: IR | U37: =VLOOKUP(Q37,PrisFaktorer!$G$11:$H$14,2,FALSE) ->  | V37: 1.2
A38: Kildeplads | B38: Boringsudførelse | C38: Tørboring_Ø250mm_0-30m | D38: STD | F38: 1257 | I38: IR | O38: lbm | P38: > 50 | Q38: Jylland | R38: Centrum | T38: IR | U38: =VLOOKUP(Q38,PrisFaktorer!$G$11:$H$14,2,FALSE) ->  | V38: 1.5
A39: Kildeplads | B39: Pumpe | C39: 60 m3/t | D39: STD | F39: 85000 | I39: IR | O39: stk | P39: 0 - 25 | Q39: København | R39: Land | T39: IR | U39: 1 | V39: IR
A40: Kildeplads | B40: Pumpe | C40: 60 m3/t | D40: STD | F40: 85000 | I40: IR | O40: stk | P40: 0 - 25 | Q40: København | R40: By | T40: IR | U40: 1 | V40: 1
A41: Kildeplads | B41: Pumpe | C41: 60 m3/t | D41: STD | F41: 85000 | I41: IR | O41: stk | P41: 0 - 25 | Q41: København | R41: Centrum | T41: IR | U41: 1 | V41: 1
A42: Kildeplads | B42: Pumpe | C42: 60 m3/t | D42: STD | F42: 85000 | I42: IR | O42: stk | P42: 0 - 25 | Q42: Sjælland | R42: Land | T42: IR | U42: 1 | V42: 1
A43: Kildeplads | B43: Pumpe | C43: 60 m3/t | D43: STD | F43: 85000 | I43: IR | O43: stk | P43: 0 - 25 | Q43: Sjælland | R43: By | T43: IR | U43: 1 | V43: 1
A44: Kildeplads | B44: Pumpe | C44: 60 m3/t | D44: STD | F44: 85000 | I44: IR | O44: stk | P44: 0 - 25 | Q44: Sjælland | R44: Centrum | T44: IR | U44: 1 | V44: 1
A45: Kildeplads | B45: Pumpe | C45: 60 m3/t | D45: STD | F45: 85000 | I45: IR | O45: stk | P45: 0 - 25 | Q45: Øerne | R45: Land | T45: IR | U45: 1 | V45: 1
A46: Kildeplads | B46: Pumpe | C46: 60 m3/t | D46: STD | F46: 85000 | I46: IR | O46: stk | P46: 0 - 25 | Q46: Øerne | R46: By | T46: IR | U46: 1 | V46: 1
A47: Kildeplads | B47: Pumpe | C47: 60 m3/t | D47: STD | F47: 85000 | I47: IR | O47: stk | P47: 0 - 25 | Q47: Øerne | R47: Centrum | T47: IR | U47: 1 | V47: 1
A48: Kildeplads | B48: Pumpe | C48: 60 m3/t | D48: STD | F48: 85000 | I48: IR | O48: stk | P48: 0 - 25 | Q48: Jylland | R48: Land | T48: IR | U48: 1 | V48: 1
A49: Kildeplads | B49: Pumpe | C49: 60 m3/t | D49: STD | F49: 85000 | I49: IR | O49: stk | P49: 0 - 25 | Q49: Jylland | R49: By | T49: IR | U49: 1 | V49: 1
A50: Kildeplads | B50: Pumpe | C50: 60 m3/t | D50: STD | F50: 85000 | I50: IR | O50: stk | P50: 0 - 25 | Q50: Jylland | R50: Centrum | T50: IR | U50: 1 | V50: 1
A51: Kildeplads | B51: Pumpe | C51: 60 m3/t | D51: STD | F51: 85000 | I51: IR | O51: stk | P51: 25 - 50 | Q51: København | R51: Land | T51: 1 | U51: 1 | V51: IR
A52: Kildeplads | B52: Pumpe | C52: 60 m3/t | D52: STD | F52: 85000 | I52: 85000 | O52: stk | P52: 25 - 50 | Q52: København | R52: By | T52: 1 | U52: 1 | V52: 1
A53: Kildeplads | B53: Pumpe | C53: 60 m3/t | D53: STD | F53: 85000 | I53: 85000 | O53: stk | P53: 25 - 50 | Q53: København | R53: Centrum | T53: 1 | U53: 1 | V53: 1
A54: Kildeplads | B54: Pumpe | C54: 60 m3/t | D54: STD | F54: 85000 | I54: 85000 | O54: stk | P54: 25 - 50 | Q54: Sjælland | R54: Land | T54: 1 | U54: 1 | V54: 1
A55: Kildeplads | B55: Pumpe | C55: 60 m3/t | D55: STD | F55: 85000 | I55: 85000 | O55: stk | P55: 25 - 50 | Q55: Sjælland | R55: By | T55: 1 | U55: 1 | V55: 1
A56: Kildeplads | B56: Pumpe | C56: 60 m3/t | D56: STD | F56: 85000 | I56: 85000 | O56: stk | P56: 25 - 50 | Q56: Sjælland | R56: Centrum | T56: 1 | U56: 1 | V56: 1
A57: Kildeplads | B57: Pumpe | C57: 60 m3/t | D57: STD | F57: 85000 | I57: 85000 | O57: stk | P57: 25 - 50 | Q57: Øerne | R57: Land | T57: 1 | U57: 1 | V57: 1
A58: Kildeplads | B58: Pumpe | C58: 60 m3/t | D58: STD | F58: 85000 | I58: 85000 | O58: stk | P58: 25 - 50 | Q58: Øerne | R58: By | T58: 1 | U58: 1 | V58: 1
A59: Kildeplads | B59: Pumpe | C59: 60 m3/t | D59: STD | F59: 85000 | I59: 85000 | O59: stk | P59: 25 - 50 | Q59: Øerne | R59: Centrum | T59: 1 | U59: 1 | V59: 1
A60: Kildeplads | B60: Pumpe | C60: 60 m3/t | D60: STD | F60: 85000 | I60: 85000 | O60: stk | P60: 25 - 50 | Q60: Jylland | R60: Land | T60: 1 | U60: 1 | V60: 1
A61: Kildeplads | B61: Pumpe | C61: 60 m3/t | D61: STD | F61: 85000 | I61: 85000 | O61: stk | P61: 25 - 50 | Q61: Jylland | R61: By | T61: 1 | U61: 1 | V61: 1
A62: Kildeplads | B62: Pumpe | C62: 60 m3/t | D62: STD | F62: 85000 | I62: 85000 | O62: stk | P62: 25 - 50 | Q62: Jylland | R62: Centrum | T62: 1 | U62: 1 | V62: 1
A63: Kildeplads | B63: Pumpe | C63: 60 m3/t | D63: STD | F63: 85000 | I63: IR | O63: stk | P63: > 50 | Q63: København | R63: Land | T63: 1 | U63: 1 | V63: IR
A64: Kildeplads | B64: Pumpe | C64: 60 m3/t | D64: STD | F64: 85000 | I64: 85000 | O64: stk | P64: > 50 | Q64: København | R64: By | T64: 1 | U64: 1 | V64: 1
A65: Kildeplads | B65: Pumpe | C65: 60 m3/t | D65: STD | F65: 85000 | I65: 85000 | O65: stk | P65: > 50 | Q65: København | R65: Centrum | T65: 1 | U65: 1 | V65: 1
A66: Kildeplads | B66: Pumpe | C66: 60 m3/t | D66: STD | F66: 85000 | I66: 85000 | O66: stk | P66: > 50 | Q66: Sjælland | R66: Land | T66: 1 | U66: 1 | V66: 1
A67: Kildeplads | B67: Pumpe | C67: 60 m3/t | D67: STD | F67: 85000 | I67: 85000 | O67: stk | P67: > 50 | Q67: Sjælland | R67: By | T67: 1 | U67: 1 | V67: 1
A68: Kildeplads | B68: Pumpe | C68: 60 m3/t | D68: STD | F68: 85000 | I68: =IFERROR(T68*U68*V68*F68,"IR") -> 85000 | O68: stk | P68: > 50 | Q68: Sjælland | R68: Centrum | T68: 1 | U68: 1 | V68: 1
A69: Kildeplads | B69: Pumpe | C69: 60 m3/t | D69: STD | F69: 85000 | I69: 85000 | O69: stk | P69: > 50 | Q69: Øerne | R69: Land | T69: 1 | U69: 1 | V69: 1
A70: Kildeplads | B70: Pumpe | C70: 60 m3/t | D70: STD | F70: 85000 | I70: 85000 | O70: stk | P70: > 50 | Q70: Øerne | R70: By | T70: 1 | U70: 1 | V70: 1
A71: Kildeplads | B71: Pumpe | C71: 60 m3/t | D71: STD | F71: 85000 | I71: 85000 | O71: stk | P71: > 50 | Q71: Øerne | R71: Centrum | T71: 1 | U71: 1 | V71: 1
A72: Kildeplads | B72: Pumpe | C72: 60 m3/t | D72: STD | F72: 85000 | I72: 85000 | O72: stk | P72: > 50 | Q72: Jylland | R72: Land | T72: 1 | U72: 1 | V72: 1
A73: Kildeplads | B73: Pumpe | C73: 60 m3/t | D73: STD | F73: 85000 | I73: 85000 | O73: stk | P73: > 50 | Q73: Jylland | R73: By | T73: 1 | U73: 1 | V73: 1
A74: Kildeplads | B74: Pumpe | C74: 60 m3/t | D74: STD | F74: 85000 | I74: 85000 | O74: stk | P74: > 50 | Q74: Jylland | R74: Centrum | T74: 1 | U74: 1 | V74: 1
